Cogmind - Beta 16.1 @@@ ROGUE MODE // 2026.06.17 @ 13:24:36 Player: BVrutally Odd Result: Defending 0bPrime! Performance ------------- Evolutions (8) 4000 Regions Visited (28) 5600 Robots Destroyed (364) 1820 Value Destroyed (21391) 21391 Prototype IDs (131) 2620 Alien Tech Used (5) 1000 Bonus (48198) 48198 TOTAL SCORE: 84629 Bonus ------- High Alert Combat Kills 15140 Follower Combat Kills 260 Registered with UFD 300 Met Optimus in HQ 500 Met Zhirov 300 MAIN.C Attacked Warlord 500 Destroyed Superfortress 15000 Met Optimus at Protoforge 1000 Executed Drillbomb Mission 10000 Optimus Survived to 0b1 3000 Win 3000 Friendly Fire -802 Cogmind --------- Core Integrity 1001/1450 Matter 273/300 Energy 470/470 System Corruption 4% Temperature Cool (0) Movement Hovering (36) Location 0bPrime Parts ------- > --- POWER (2) -------- Improved Quantum Reactor Concept Zero-point Core > --- PROPULSION (7) --- Experimental Antigrav System Gravjet Array Gravjet Array Concept Combat Aerolev Unit Concept Gyrokinetic System > --- UTILITY (12) ----- Concept Antigrav Storage Unit Spectral Analyzer Experimental Active Sensor Suite Concept Networked Targeting System Concept Weapon Articulator Experimental Core Analyzer Experimental Reaction Control System Advanced Phase Shifter Centrium Heavy Armor Plating Graphene Brace > --- WEAPON (2) ------- Concept Miniperforator > --- INVENTORY (25) --- Cooled Antimatter Reactor Cooled Antimatter Reactor Improved Quantum Reactor Experimental Antimatter Reactor Experimental Antimatter Reactor Concept Zero-point Core Concept Zero-point Core Cooled Gravmag System Cooled Antigrav System Concept Combat Aerolev Unit Concept Combat Aerolev Unit Concept Gyrokinetic System Advanced Transmission Jammer Advanced Phase Shifter Concept Matter Streamer Concept Plasma Driver Concept Plasma Driver Concept Helical Railcannon Fusion Bomb Launcher Concept Tactical Fusion Warhead Concept Deflector Sword Peak State ------------ > --- POWER ------------ Improved Quantum Reactor Concept Zero-point Core > --- PROPULSION ------- Experimental Antigrav System Gravjet Array Gravjet Array Concept Combat Aerolev Unit Concept Gyrokinetic System > --- UTILITY ---------- Concept Antigrav Storage Unit Spectral Analyzer Experimental Active Sensor Suite Concept Networked Targeting System Concept Weapon Articulator Experimental Core Analyzer Experimental Reaction Control System Advanced Phase Shifter Centrium Heavy Armor Plating Graphene Brace > --- WEAPON ----------- Concept Miniperforator Concept Helical Railcannon > --- INVENTORY -------- Cooled Antimatter Reactor Cooled Antimatter Reactor Improved Quantum Reactor Experimental Antimatter Reactor Experimental Antimatter Reactor Concept Zero-point Core Concept Zero-point Core Cooled Gravmag System Cooled Antigrav System Concept Combat Aerolev Unit Concept Combat Aerolev Unit Concept Gyrokinetic System Advanced Transmission Jammer Advanced Phase Shifter Concept Matter Streamer Concept Plasma Driver Concept Plasma Driver Fusion Bomb Launcher Concept Tactical Fusion Warhead Concept Deflector Sword [Rating: 261] Favorites ----------- Power F-cell Engine Engine F-cell Engine Power Core Concept Zero-point Core Reactor Cooled Antimatter Reactor Propulsion Cesium-ion Thruster Treads Light Treads Wheel Subdweller Monowheel Hover Unit Improved Linear Gravjet Flight Unit Cesium-ion Thruster Utility Large Storage Unit Device Seismic Detector Storage Large Storage Unit Processor Enhanced Optical Array Hackware Makeshift Hacking Suite Protection Improved Propulsion Shielding Weapon Improved Assault Rifle Energy Gun Small Laser Energy Cannon Subdweller Beam Cannon Ballistic Gun Improved Assault Rifle Ballistic Cannon Concept Miniperforator Launcher Mini Grenade Launcher Special Weapon RU-N14's Throwing Claymores Impact Weapon Powered Hammer Slashing Weapon Power Sword Piercing Weapon Makeshift Spear Build | -11 -10 -10 -8 -8 -6 -6 -6 -6 -5 -5 -5 -5 -5 -5 -5 -4 -4 -4 -4 -4 -4 -4 -3 -3 -3 -2 -2 -2 ------- Run | Yrd Mat Sub Rec Scr Fac Low Low Zio Pro Fac Was Fac Upp Upp Zhi Pro Fac Was Fac Upp Upp War Pro Res Tes Res Qua Frg Slots Evolved 16 | . . . . . 8 . . . . 2 . . . . . . 2 . . . . . . 2 . 2 . . Power 1 | . . . . . . . . . . . . . . . . . . . . . . . . 1 . . . . Propulsion 5 | . . . . . 5 . . . . . . . . . . . . . . . . . . . . . . . Utility 10 | . . . . . 3 . . . . 2 . . . . . . 2 . . . . . . 1 . 2 . . Weapon . | . . . . . . . . . . . . . . . . . . . . . . . . . . . . . Parts Attached 177 | 7 8 14 1 7 14 . 2 4 . 6 1 3 . . 4 . 1 . 1 1 1 6 . 14 23 7 4 48 Power 18 | 1 1 2 . 1 2 . . . . . . . . . 1 . . . . . . . . 1 2 . . 7 Engine 6 | 1 1 2 . 1 1 . . . . . . . . . . . . . . . . . . . . . . . Core 3 | . . . . . 1 . . . . . . . . . . . . . . . . . . . . . . 2 Reactor 9 | . . . . . . . . . . . . . . . 1 . . . . . . . . 1 2 . . 5 Propulsion 37 | 2 . 5 1 1 5 . . . . . . . . . 1 . . . . . . 3 . 7 1 1 1 9 Treads 5 | 2 . 1 1 1 . . . . . . . . . . . . . . . . . . . . . . . . Leg . | . . . . . . . . . . . . . . . . . . . . . . . . . . . . . Wheel 4 | . . 4 . . . . . . . . . . . . . . . . . . . . . . . . . . Hover 21 | . . . . . . . . . . . . . . . 1 . . . . . . 1 . 7 1 1 1 9 Flight 7 | . . . . . 5 . . . . . . . . . . . . . . . . 2 . . . . . . Utility 71 | 2 2 1 . 2 5 . 2 2 . 3 1 1 . . 2 . 1 . 1 . 1 1 . 5 13 4 2 20 Device 42 | 1 1 1 . . 2 . 2 1 . . . . . . . . 1 . 1 . 1 . . 4 9 3 2 13 Storage 4 | 1 1 . . . . . . . . . . . . . 1 . . . . . . . . . . . . 1 Processor 11 | . . . . . 2 . . . . . . . . . . . . . . . . 1 . . 2 1 . 5 Hackware 6 | . . . . . . . . 1 . 2 . 1 . . . . . . . . . . . 1 1 . . . Protection 8 | . . . . 2 1 . . . . 1 1 . . . 1 . . . . . . . . . 1 . . 1 Artifact . | . . . . . . . . . . . . . . . . . . . . . . . . . . . . . Weapon 51 | 2 5 6 . 3 2 . . 2 . 3 . 2 . . . . . . . 1 . 2 . 1 7 2 1 12 Energy Gun 2 | 1 . . . . . . . . . . . . . . . . . . . . . . . . 1 . . . Energy Cannon 9 | . . 3 . . . . . . . . . . . . . . . . . . . 1 . . 2 . . 3 Ballistic Gun 10 | 1 4 1 . 1 . . . . . . . . . . . . . . . . . . . . . . . 3 Ballistic Cannon 6 | . . . . . 1 . . . . . . 1 . . . . . . . . . . . . 1 . . 3 Launcher 6 | . 1 2 . . . . . . . 1 . . . . . . . . . . . . . . . . . 2 Special Weapon 7 | . . . . . . . . 1 . 1 . . . . . . . . . 1 . 1 . 1 1 1 . . Impact Weapon 3 | . . . . . 1 . . . . . . 1 . . . . . . . . . . . . 1 . . . Slashing Weapon 7 | . . . . 2 . . . . . 1 . . . . . . . . . . . . . . 1 1 1 1 Piercing Weapon 1 | . . . . . . . . 1 . . . . . . . . . . . . . . . . . . . . Special Melee Weapon . | . . . . . . . . . . . . . . . . . . . . . . . . . . . . . Unidentified Prototypes 47 | . 1 1 . . 1 . 1 2 . . 1 . . . 5 . . . . . . 4 . . 16 2 2 11 Parts Lost 28 | . 1 5 . . . . . . . 1 . . . . . . . . . 1 . . . 3 1 . . 16 Power 4 | . . 3 . . . . . . . . . . . . . . . . . . . . . . . . . 1 Propulsion 7 | . . 2 . . . . . . . . . . . . . . . . . . . . . . . . . 5 Utility 14 | . 1 . . . . . . . . 1 . . . . . . . . . 1 . . . 3 1 . . 7 Weapon 3 | . . . . . . . . . . . . . . . . . . . . . . . . . . . . 3 Highest Loss Streak 5 | . 1 1 . . . . . . . 1 . . . . . . . . . 1 . . . 3 1 . . 5 To Critical Strikes . | . . . . . . . . . . . . . . . . . . . . . . . . . . . . . Average Backups 13 | 1 8 12 12 11 11 12 12 13 15 13 14 13 14 14 14 15 15 15 15 15 14 14 15 12 13 13 13 18 Power 1 | . 1 . . . . 1 1 1 1 1 1 1 1 1 1 1 1 1 1 1 1 1 1 1 1 1 1 4 Propulsion 2 | . . . 1 1 3 4 4 3 2 2 2 2 2 1 1 3 3 4 4 4 4 4 5 . 1 2 3 4 Utility 2 | . 1 1 2 2 1 1 1 2 5 3 2 2 3 3 3 3 2 2 2 2 2 2 2 3 4 4 4 3 Weapon 6 | . 6 10 9 7 4 5 5 6 6 6 6 6 6 6 5 4 4 4 4 4 3 3 4 4 4 4 3 6 Tool/Special . | . . . . . . . . . . . . . . . . . . . . . . . . . . . . . Unused Backups 35 | . 2 4 . 3 2 . . 4 . 1 . 1 . . 3 . . . . . . . . 1 4 . 1 9 Power 5 | . . . . . . . . . . . . . . . 1 . . . . . . . . . 1 . . 3 Propulsion 11 | . . 1 . . 2 . . 2 . 1 . . . . 1 . . . . . . . . . 1 . . 3 Utility 7 | . . . . 1 . . . . . . . . . . 1 . . . . . . . . 1 2 . . 2 Weapon 10 | . 2 3 . 2 . . . 2 . . . . . . . . . . . . . . . . . . . 1 Tool/Special 2 | . . . . . . . . . . . . 1 . . . . . . . . . . . . . . 1 . Average Slot Usage (%) 88 | . 99 99 100 86 63 77 77 80 83 83 81 84 85 82 84 85 84 86 86 83 85 86 86 95 99 97 98 81 Engine 7 | . 14 13 14 14 3 5 5 5 5 5 5 5 5 5 4 5 4 4 4 4 4 4 4 1 . . . . Reactor 1 | . . . . . . . . . . . . . . . . . . . . . . . . 6 9 8 7 4 Treads 10 | . 27 18 26 28 . . . . . . . . . . . . . . . . . . . . . . . . Wheel 1 | . . 8 1 . . . . . . . . . . . . . . . . . . . . . . . . . Hover 6 | . . . . . . . . . . . . . . . . . . . . . . . . 26 33 30 29 22 Flight 7 | . . . . . 21 22 22 22 22 20 20 20 20 20 20 20 18 18 18 18 18 18 18 1 . . . . Device 13 | . 13 14 14 . 13 16 16 16 16 14 15 15 15 14 14 15 16 18 18 18 21 21 18 16 13 14 19 19 Storage 8 | . 14 14 14 14 5 5 5 5 5 5 5 5 5 5 5 5 4 4 4 4 4 4 4 4 4 4 4 4 Processor 6 | . . . . . 2 11 11 11 11 10 10 10 10 10 10 10 9 9 9 9 9 9 13 4 6 11 10 14 Hackware 6 | . . . . . . . . 3 5 14 15 19 20 20 20 20 18 18 18 18 18 18 18 19 19 17 17 1 Protection 1 | . . . . 2 5 5 5 5 5 3 4 . . . . . 3 4 4 2 . . . 1 1 2 . 3 Energy Cannon 5 | . . 20 28 12 . . . . . . . . . . . . . . . . . . . . . . . . Ballistic Gun 5 | . 27 7 . 12 . . . . . . . . . . . . . . . . . . . . . . . . Impact Weapon 1 | . . . . . 2 . . 1 5 4 5 5 5 3 5 4 4 4 4 4 4 4 4 4 2 . . . Slashing Weapon 2 | . . . . 1 4 10 11 9 4 4 2 4 5 3 5 5 4 4 3 3 3 3 4 3 2 4 4 . Peak Build Rating 261 | 7 14 19 19 24 83 85 87 96 92 100 108 104 104 108 113 109 121 121 123 125 126 142 136 139 152 164 168 261 Average Rating 87 | 6 11 15 18 18 72 83 85 89 90 96 102 102 103 104 106 108 119 120 123 120 123 126 136 131 140 151 155 225 On Entrance 93 | . 7 14 19 18 24 83 83 87 92 89 97 100 103 103 106 108 108 121 121 123 117 123 136 136 132 144 151 168 Avg Prop Armor Cover (%) 10 | . . 10 16 . 1 . . . . . . . . . . . . . . . . . . . . . . . Naked Turns . | . . . . . . . . . . . . . . . . . . . . . . . . . . . . . Heaviest Build 116 | 11 30 42 42 42 42 42 42 42 42 52 44 48 41 48 41 41 43 43 43 48 43 43 42 71 78 99 71 116 Greatest Support 111 | 40 40 40 40 40 42 42 42 42 42 43 43 43 43 44 44 44 44 44 44 44 44 45 45 106 79 100 100 111 Greatest Overweight (x) 3 | . . 3 2 1 1 . . . . 1 1 1 . 1 . . . . . 1 . . . 1 . 1 . 1 Average Overweight (x) . | . . 1 1 . . . . . . . . . . . . . . . . . . . . . . . . . Largest Inventory Capacity 25 | 8 15 15 15 15 15 15 15 15 15 15 15 15 15 15 15 15 15 15 15 15 15 15 15 15 15 15 15 25 Average Capacity 15 | 7 12 15 15 15 15 15 15 15 15 15 15 15 15 15 15 15 15 15 15 15 15 15 15 15 15 15 15 23 Most Carried 25 | 3 14 15 15 15 15 14 15 15 15 15 15 15 15 15 15 15 15 15 15 15 15 15 15 15 15 15 15 25 Average Carried 14 | 1 8 14 15 14 13 14 14 14 15 14 14 14 15 14 14 15 14 14 15 15 14 14 15 14 14 14 14 19 Final Capacity 25 | 8 15 15 15 15 15 15 15 15 15 15 15 15 15 15 15 15 15 15 15 15 15 15 15 15 15 15 15 25 Final Carried 21 | 3 14 15 15 13 14 14 15 15 15 15 15 15 15 15 15 15 15 15 15 15 14 15 15 15 15 15 15 21 Class Distribution -------------------- 39% | Mutant 19% | Hacker-Scout 12% | Scavenger-Scout 8% | Hacker-Ninja 6% | Scout 5% | Sprinter 3% | Derelict-Mutant 3% | Hacker-Sprinter Dominant Class ---------------- Mutant | -10/Materials Mutant | -10/Subcaves Mutant | -8/Recycling Mutant | -8/Scraptown Sprinter | -6/Factory Scout | -6/Lower Caves Sprinter | -6/Lower Caves Sprinter | -6/Zion Scout | -5/Proximity Caves Hacker-Scout | -5/Factory Hacker-Scout | -5/Waste Hacker-Scout | -5/Factory Hacker-Scout | -5/Upper Caves Hacker-Scout | -5/Upper Caves Hacker-Scout | -5/Zhirov Hacker-Scout | -4/Proximity Caves Hacker-Scout | -4/Factory Hacker-Scout | -4/Waste Hacker-Ninja | -4/Factory Hacker-Ninja | -4/Upper Caves Hacker-Ninja | -4/Upper Caves Hacker-Ninja | -4/Warlord Hacker-Ninja | -3/Proximity Caves Hacker-Sprinter | -3/Research Hacker-Scout | -3/Testing Hacker-Scout | -2/Research Hacker-Ninja | -2/Quarantine Scavenger-Scout | -2/Protoforge Resources | -11 -10 -10 -8 -8 -6 -6 -6 -6 -5 -5 -5 -5 -5 -5 -5 -4 -4 -4 -4 -4 -4 -4 -3 -3 -3 -2 -2 -2 ----------- Run | Yrd Mat Sub Rec Scr Fac Low Low Zio Pro Fac Was Fac Upp Upp Zhi Pro Fac Was Fac Upp Upp War Pro Res Tes Res Qua Frg Matter Collected 11809 | 290 372 414 . 117 254 126 30 80 10 274 218 119 63 532 . 170 29 . . 76 243 . 139 210 322 244 210 7267 Remotely 1421 | . . . . . . . . . . . . . . . . . . . . . . . . . . . . 1421 Salvage Created 21342 | 257 475 405 . . 321 81 . . . 470 . 209 131 396 . 106 135 . 21 38 137 . 591 637 329 273 240 16090 Parts 832 | 16 34 27 . . 11 4 . . . 15 . 11 7 6 . 4 1 . 4 8 11 . 8 23 16 13 13 600 Haulers Intercepted 13 | . 2 . . . 2 . . . . 3 . 2 . . . . 1 . . . . . . 1 1 1 . . Recyclers Shooed 4 | 1 1 . . . 2 . . . . . . . . . . . . . . . . . . . . . . . Parts Field Recycled . | . . . . . . . . . . . . . . . . . . . . . . . . . . . . . Retrieved Matter . | . . . . . . . . . . . . . . . . . . . . . . . . . . . . . Parts Self-Destructed 57 | . . 18 . . . 1 11 . 9 . . . 2 6 . . . . . 8 2 . . . . . . . Prevented 17 | . . . . . . 1 1 . 15 . . . . . . . . . . . . . . . . . . . Parts Restored 9 | . . . . . . . . . . . . . . . . . . . . . . . . . . . . 9 Faulty 9 | . . . . . . . . . . . . . . . . . . . . . . . . . . . . 9 Kills | -11 -10 -10 -8 -8 -6 -6 -6 -6 -5 -5 -5 -5 -5 -5 -5 -4 -4 -4 -4 -4 -4 -4 -3 -3 -3 -2 -2 -2 ------- Run | Yrd Mat Sub Rec Scr Fac Low Low Zio Pro Fac Was Fac Upp Upp Zhi Pro Fac Was Fac Upp Upp War Pro Res Tes Res Qua Frg Combat Hostiles Destroyed 283 | . 17 9 . . 3 . . . . 10 . . . 9 . . . . . 6 4 . . 3 . 1 . 221 Melee 2 | . . . . . . . . . . . . . . . . . . . . . . . . . . 1 . 1 Guns 18 | . 8 2 . . . . . . . . . . . . . . . . . . . . . . . . . 8 Cannons 210 | . . 3 . . 1 . . . . . . . . 5 . . . . . 1 1 . . 2 . . . 197 AOE 49 | . 9 4 . . 2 . . . . 10 . . . 3 . . . . . 5 3 . . 1 . . . 12 Classes Destroyed 26 | 3 5 1 . . 1 2 . . . . . . . . . . . . . . . . . . . 1 . 13 Worker 20 | 2 1 . . . 3 . . . . 1 . . . . . . 1 . . . . . . 5 3 1 2 1 Builder 5 | . . . . . 1 . . . . . . 1 . . . . 1 . . . . . . 1 1 . . . Tunneler 10 | 6 1 . . . . . . . . 1 . . . . . . . . . . . . . . . 2 . . Hauler 14 | . 2 . . . 2 . . . . 3 . 2 . . . . 1 . . . . . . 1 1 1 . 1 Recycler 5 | 1 . . . . . . . . . . . . . . . . . . . . . . . 2 1 . 1 . Minesweeper 1 | . . . . . . 1 . . . . . . . . . . . . . . . . . . . . . . Mechanic 2 | . . . . . . . . . . . . . . . . . . . . . . . . . . . . 2 Operator 7 | . 2 . . . . . . . . . . . . . . . . . 1 . . . . . 1 1 . 2 Drone 3 | . . . . . . . . . . . . . . . . . . . . . . . . . . . . 3 Watcher 13 | . 3 . . . 1 . . . . 3 . . . . . . . . . . . . . 1 . . 2 3 Swarmer 57 | . 12 1 . . 3 . . . . 10 . . . . . . . . . 6 4 . . 3 . . . 18 Saboteur 6 | . . . . . . . . . . . . . . . . . . . . . . . . . . . . 6 Grunt 63 | . 5 4 . . . . . . . . . . . 9 . . . . . . . . . . . . . 45 Brawler 14 | . . . . . . . . . . . . . . . . . . . . . . . . . . . . 14 Duelist 6 | . . . . . . . . . . . . . . . . . . . . . . . . . . . . 6 Protector 13 | . . . . . . . . . . . . . . . . . . . . . . . . . . . . 13 Sentry 10 | . . . . . . . . . . . . . . . . . . . . . . . . . . 1 . 9 Hunter 24 | . . . . . . . . . . . . . . . . . . . . . . . . . . . . 24 Programmer 11 | . . . . . . . . . . . . . . . . . . . . . . . . . . . . 11 Behemoth 1 | . . . . . . . . . . . . . . . . . . . . . . . . . . . . 1 Hotshot 6 | . . . . . . . . . . . . . . . . . . . . . . . . . . . . 6 Decapitator 12 | . . . . . . . . . . . . . . . . . . . . . . . . . . . . 12 Immortal 1 | . . . . . . . . . . . . . . . . . . . . . . . . . . . . 1 Striker 27 | . . . . . . . . . . . . . . . . . . . . . . . . . . . . 27 Executioner 26 | . . . . . . . . . . . . . . . . . . . . . . . . . . . . 26 Subdweller 7 | . . 7 . . . . . . . . . . . . . . . . . . . . . . . . . . Scraphulk 1 | . . . . . . . . . . . . . . . . . . . . . . . . . . . . 1 Decomposer 2 | . . . . . . . . . . . . . 2 . . . . . . . . . . . . . . . Samaritan 7 | . . . . . . 1 . . . . . . 1 . . 2 . . . . 3 . . . . . . . Best Kill Streak 24 | 8 4 3 . . 4 1 . . . 8 . 1 . 3 . . 1 . 1 5 4 . . 4 2 2 2 24 Combat Bots Only 22 | . 3 3 . . 3 . . . . 5 . . . 3 . . . . . 5 4 . . 3 . 1 . 22 Max Kills in Single Turn 5 | 1 4 2 . . 2 1 . . . 5 . 1 1 2 . 1 1 . 1 5 2 . . 2 1 1 1 4 Gunslinging 1 | . 1 . . . . . . . . . . . . . . . . . . . . . . . . . . 1 Exploded 5 | . 3 2 . . 1 . . . . 4 . . . 2 . . . . . 5 2 . . 1 . . . 3 Melee 1 | . . . . . . . . . . . . . . . . . . . . . . . . . . 1 . 1 Uniques/NPCs Destroyed . | . . . . . . . . . . . . . . . . . . . . . . . . . . . . . Combat | -11 -10 -10 -8 -8 -6 -6 -6 -6 -5 -5 -5 -5 -5 -5 -5 -4 -4 -4 -4 -4 -4 -4 -3 -3 -3 -2 -2 -2 -------- Run | Yrd Mat Sub Rec Scr Fac Low Low Zio Pro Fac Was Fac Upp Upp Zhi Pro Fac Was Fac Upp Upp War Pro Res Tes Res Qua Frg Hostile Shots Fired 486 | . 46 52 . . 10 . 2 . . 14 . 6 . 1 . . 6 . 4 10 12 . 3 30 14 22 2 252 Missed 214 | . 12 18 . . 4 . 2 . . 2 . 3 . 1 . . 3 . 1 6 6 . 3 20 10 8 1 114 Hits 272 | . 34 34 . . 6 . . . . 12 . 3 . . . . 3 . 3 4 6 . . 10 4 14 1 138 Melee 11 | . . . . . . . . . . . . . . . . . . . . . . . . . . . . 11 Projectile 261 | . 34 34 . . 6 . . . . 12 . 3 . . . . 3 . 3 4 6 . . 10 4 14 1 127 AOE 5 | . . 2 . . . . . . . . . . . . . . . . . . . . . . . . . 3 Critical Strikes 19 | . . . . . . . . . . . . . . . . . . . . . 1 . . 1 . . . 17 Actively Blocked 17 | . . . . . . . . . . . . . . . . . . . . . . . . . . . . 17 Part Disruptions 3 | . . . . . . . . . . . . . . . . . 2 . . . . 1 . . . . . . Actively Blocked 2 | . . . . . . . . . . . . . . . . . 2 . . . . . . . . . . . Damage Taken 7156 | . 338 614 . . 155 . . . . 183 . 68 . 62 . . 180 . 51 75 94 63 . 439 83 370 . 4381 Core 667 | . 33 88 . . . . . . . 18 . . . . . . 25 . 24 13 25 13 . 23 35 . . 370 Absorbed by Shields . | . . . . . . . . . . . . . . . . . . . . . . . . . . . . . Redirected to Shielding 261 | . . . . . 62 . . . . 47 . . . . . . 110 . 23 19 . . . . . . . . Regen/Repaired (Parts) 114 | . 92 . . . . . . . . . 5 . . . . . . . . . . 17 . . . . . . Core Remaining (%) 86 | 100 . . . 51 . . . . 100 . . . . . . 98 . . . . . . 91 . 95 . . 69 Volleys Fired 680 | 20 40 80 . . 9 4 . . 3 23 . 6 2 45 . 5 1 . 4 12 4 . . 2 6 10 16 388 Largest 2 | 2 2 2 . . 1 1 . . 1 2 . 1 1 1 . 1 1 . 1 1 1 . . 1 1 1 1 2 Hottest 280 | 60 46 160 . . 44 44 . . 44 83 . 51 44 51 . 44 5 . 44 44 . . . . 51 51 51 280 Shots Fired 780 | 39 75 96 . . 9 4 . . 3 24 . 6 2 45 . 5 1 . 4 12 4 . . 2 6 11 16 416 Gun 192 | 39 70 15 . . . . . . . . . . . . . . . . . . . . . . . . . 68 Cannon 520 | . . 62 . . 6 4 . . 3 16 . 6 2 35 . 5 . . 4 11 . . . . 5 10 16 335 Launcher 54 | . 5 19 . . 3 . . . . 7 . . . 10 . . . . . . . . . . . . . 10 Special 14 | . . . . . . . . . . 1 . . . . . . 1 . . 1 4 . . 2 1 1 . 3 Kinetic 568 | 20 70 15 . . 6 4 . . 3 16 . 6 2 35 . 5 . . 4 11 . . . . 5 10 16 340 Thermal 144 | 19 . 62 . . . . . . . . . . . . . . . . . . . . . . . . . 63 Explosive 65 | . 5 19 . . 3 . . . . 7 . . . 10 . . . . . 1 4 . . 2 1 . . 13 Electromagnetic . | . . . . . . . . . . . . . . . . . . . . . . . . . . . . . Robot Hit Streak 38 | 10 15 13 . . 1 . . . . 2 . 1 . 7 . . 8 . . 1 1 . . 3 4 5 . 38 Robot Miss Streak 7 | 2 3 2 . . 2 . . . . 1 . 1 . 5 . . . . . 1 1 . . . . . . 7 Penetration Max 3 | . . . . . . . . . . . . . . . . . . . . . . . . . . . . 3 Secondary Targets 3 | . 2 . . . . . . . . . . . . . . . . . . . . . . . . . . 1 Max Gunslinging Chain 1 | . 1 . . . . . . . . . . . . . . . . . . . . . . . . . . 1 Shots Hit Robots 575 | 23 44 32 . . 13 8 . . . 15 . 8 4 23 . 2 17 . 2 1 6 . 14 17 11 17 5 313 Core Hits 744 | 12 31 20 . . 11 2 . . . 13 . 4 1 23 . 2 1 . 1 5 9 . 4 8 3 5 4 585 Critical Kills 195 | . . . . . . . . . . . . . . 2 . . . . . . . . . 1 . . . 192 Critical Parts Destroyed 211 | . 1 . . . . . . . . 2 . . 1 8 . . . . . . . . . . . . . 199 Critical Strikes 444 | . 1 . . . . . . . . 3 . . 1 11 . . . . . . . . . 2 1 1 . 424 Meltdown 3 | . . . . . . . . . . . . . . . . . . . . . . . . . . . . 3 Destroy 430 | . 1 . . . . . . . . . . . . 9 . . . . . . . . . . . . . 420 Blast 1 | . . . . . . . . . . . . . . 1 . . . . . . . . . . . . . . Smash 5 | . . . . . . . . . . 2 . . 1 1 . . . . . . . . . 1 . . . . Sever 5 | . . . . . . . . . . 1 . . . . . . . . . . . . . 1 1 1 . 1 Melee Attacks 351 | . . . . . 25 9 . 1 3 35 . 28 7 13 . 13 37 . 12 14 6 . 26 34 28 33 15 12 Impact 128 | . . . . . 14 . . . . 24 . 9 3 3 . 9 30 . 5 1 1 . 5 16 8 . . . Slashing 223 | . . . . . 11 9 . 1 3 11 . 19 4 10 . 4 7 . 7 13 5 . 21 18 20 33 15 12 Piercing . | . . . . . . . . . . . . . . . . . . . . . . . . . . . . . Sneak Attacks 60 | . . . . . 7 3 . . . 3 . 4 3 . . 2 9 . 1 . 4 . . 8 6 6 3 1 Combat Hostiles . | . . . . . . . . . . . . . . . . . . . . . . . . . . . . . Follow-up Attacks 10 | . . . . . . . . . . 2 . 2 . . . . 4 . . . . . . 2 . . . . Damage Inflicted 28813 | 222 1159 984 . . 1074 428 . . . 1751 . 533 404 1341 . 181 1013 . 108 605 783 . 1078 1485 1010 1340 603 12711 Guns 2256 | 222 666 146 . . . . . . . . . . . . . . . . . . . . . . . . . 1222 Cannons 8284 | . . 514 . . 32 . . . . . . 18 . 387 . . . . . 35 . . . . 33 . . 7265 Explosions 7902 | . 490 324 . . 257 . . . . 1006 . . . 691 . . . . . 570 375 . . 310 . . . 3879 Melee 10191 | . . . . . 785 428 . . . 745 . 515 404 263 . 181 1013 . 108 . 340 . 1078 1110 977 1340 603 301 Ramming 3 | . 3 . . . . . . . . . . . . . . . . . . . . . . . . . . . Kinetic 7047 | 80 666 146 . . 32 . . . . . . 18 . 387 . . . . . 35 . . . . 33 . . 5650 Thermal 3493 | 142 . 514 . . . . . . . . . . . . . . . . . . . . . . . . . 2837 Explosive 7902 | . 490 324 . . 257 . . . . 1006 . . . 691 . . . . . 570 375 . . 310 . . . 3879 Electromagnetic . | . . . . . . . . . . . . . . . . . . . . . . . . . . . . . Impact 2964 | . . . . . 399 . . . . 656 . 162 215 55 . . 765 . 27 . . . . 410 275 . . . Slashing 7404 | . . . . . 386 428 . . . 89 . 353 189 208 . 181 248 . 81 . 408 . 1078 765 702 1340 603 345 Piercing . | . . . . . . . . . . . . . . . . . . . . . . . . . . . . . Highest Corruption 15 | . . . . . . . . . . . . . . . . . 5 15 15 15 15 15 . 2 2 1 1 4 Average Corruption 3 | . . . . . . . . . . . . . . . . . 5 11 15 15 15 15 . 2 2 1 1 1 Corruption Purged . | . . . . . . . . . . . . . . . . . . . . . . . . . . . . . Corruption Blocked . | . . . . . . . . . . . . . . . . . . . . . . . . . . . . . Effects 73 | . . . . . . . . . . . . . . . . . 2 3 7 14 7 2 . 3 4 2 2 27 Message Errors 17 | . . . . . . . . . . . . . . . . . 1 1 2 3 2 . . 2 1 . . 5 Matter Fused 21 | . . . . . . . . . . . . . . . . . 1 1 2 5 . 1 . 1 . . 1 9 Heat Flow Errors 8 | . . . . . . . . . . . . . . . . . . . . 1 1 1 . . 1 . . 4 Energy Discharges 3 | . . . . . . . . . . . . . . . . . . . . 1 . . . . . . . 2 Parts Rejected 1 | . . . . . . . . . . . . . . . . . . . . . 1 . . . . . . . Parts Fused 1 | . . . . . . . . . . . . . . . . . . . 1 . . . . . . . . . Data Loss (minor) 9 | . . . . . . . . . . . . . . . . . . . 2 2 . . . . 1 1 . 3 Data Loss (major) 7 | . . . . . . . . . . . . . . . . . . 1 . 1 1 . . . 1 . . 3 Misfires 1 | . . . . . . . . . . . . . . . . . . . . . . . . . . 1 . . Alerts 1 | . . . . . . . . . . . . . . . . . . . . . . . . . . . 1 . Misdirections 3 | . . . . . . . . . . . . . . . . . . . . 1 2 . . . . . . . Weapon Failures 1 | . . . . . . . . . . . . . . . . . . . . . . . . . . . . 1 Overload Shots . | . . . . . . . . . . . . . . . . . . . . . . . . . . . . . Overflow Damage 3431 | . . 15 . . 190 179 . . . 272 . . 258 156 . . 171 . . 34 75 . 697 416 295 221 45 407 Projectiles 24 | . . . . . . . . . . . . . . . . . . . . . . . . . . . . 24 Explosions 508 | . . 15 . . . . . . . 57 . . . . . . . . . 34 . . . 19 . . . 383 Melee 2899 | . . . . . 190 179 . . . 215 . . 258 156 . . 171 . . . 75 . 697 397 295 221 45 . Knockbacks 61 | . . . . . 1 . . . . 3 . . . 1 . . 3 . . . . . . 1 . . . 52 Impact 9 | . . . . . 1 . . . . 3 . . . 1 . . 3 . . . . . . 1 . . . . Kinetic 51 | . . . . . . . . . . . . . . . . . . . . . . . . . . . . 51 Secondary 1 | . . . . . . . . . . . . . . . . . . . . . . . . . . . . 1 Self-Inflicted Damage 220 | . 44 56 . . 58 . . . . . . . . 62 . . . . . . . . . . . . . . Shots 7 | . 2 2 . . 2 . . . . . . . . 1 . . . . . . . . . . . . . . Rammed 1 | . 1 . . . . . . . . . . . . . . . . . . . . . . . . . . . Targets Rammed 1 | . 1 . . . . . . . . . . . . . . . . . . . . . . . . . . . Kicked . | . . . . . . . . . . . . . . . . . . . . . . . . . . . . . Crushed . | . . . . . . . . . . . . . . . . . . . . . . . . . . . . . Highest Temperature 303 | 60 2 173 . . 71 4 4 4 4 6 2 2 . 16 . . . . . 175 192 235 . 8 303 5 . 127 Average Temperature 15 | 25 1 66 . . 13 2 2 2 2 4 1 1 . 6 . . . . . 104 94 93 . 5 115 4 . 39 Received Heat Transfer 729 | . 48 174 . . 9 . . . . . . . . . . . 9 . . 9 9 . . 18 . 54 . 399 Effects 1 | . . . . . . . . . . . . . . . . . . . . . . . . . 1 . . . Energy Bleed 1 | . . . . . . . . . . . . . . . . . . . . . . . . . 1 . . . Siege Activations . | . . . . . . . . . . . . . . . . . . . . . . . . . . . . . Martial Activations . | . . . . . . . . . . . . . . . . . . . . . . . . . . . . . Shielding Activations . | . . . . . . . . . . . . . . . . . . . . . . . . . . . . . Robots Disrupted . | . . . . . . . . . . . . . . . . . . . . . . . . . . . . . Combat Hostiles . | . . . . . . . . . . . . . . . . . . . . . . . . . . . . . Robots Corrupted 15 | . . . . . 3 . . . . 5 . . . 1 . . 3 . . . . . . 2 1 . . . Combat Hostiles 1 | . . . . . . . . . . . . . . 1 . . . . . . . . . . . . . . Parts Fried 25 | . . . . . 3 . . . . 6 . . . 1 . . 4 . . . . . . 7 2 . . 2 Impact Corruptions 39 | . . . . . 5 . . . . 10 . . 9 1 . . 7 . . . . . . 4 3 . . . Robots Melted 3 | . . . . . . . . . . . . . . . . . . . . . . . . . . . . 3 Combat Hostiles 3 | . . . . . . . . . . . . . . . . . . . . . . . . . . . . 3 Parts Melted 13 | 1 . . . . . . . . . . . . . . . . . . . . . . . . . . . 12 Heat Transferred 2503 | 325 . 703 . . . . . . . . . . . . . . . . . . . . . . . . . 1475 Parts Sabotaged . | . . . . . . . . . . . . . . . . . . . . . . . . . . . . . Parts Stolen . | . . . . . . . . . . . . . . . . . . . . . . . . . . . . . Parts Stripped . | . . . . . . . . . . . . . . . . . . . . . . . . . . . . . Power Chain Reactions . | . . . . . . . . . . . . . . . . . . . . . . . . . . . . . Alert | -11 -10 -10 -8 -8 -6 -6 -6 -6 -5 -5 -5 -5 -5 -5 -5 -4 -4 -4 -4 -4 -4 -4 -3 -3 -3 -2 -2 -2 ------- Run | Yrd Mat Sub Rec Scr Fac Low Low Zio Pro Fac Was Fac Upp Upp Zhi Pro Fac Was Fac Upp Upp War Pro Res Tes Res Qua Frg Maximum Alert Level 5 | . 1 . . . . . . . . 1 . . . . . . . . . . . . . 1 1 1 . 5 Low Security (%) 64 | 100 88 . 100 . 100 . . . . 63 100 100 . . . . 100 100 100 . . . . 88 28 84 100 15 Level 1 10 | . 11 . . . . . . . . 36 . . . . . . . . . . . . . 11 71 15 . 6 Level 2 3 | . . . . . . . . . . . . . . . . . . . . . . . . . . . . 9 Level 3 5 | . . . . . . . . . . . . . . . . . . . . . . . . . . . . 17 Level 4 1 | . . . . . . . . . . . . . . . . . . . . . . . . . . . . 6 Level 5 14 | . . . . . . . . . . . . . . . . . . . . . . . . . . . . 44 High Security . | . . . . . . . . . . . . . . . . . . . . . . . . . . . . . Max Security . | . . . . . . . . . . . . . . . . . . . . . . . . . . . . . Peak Influence 5801 | 20 229 . 45 . 123 . . . . 260 98 17 . . . . 33 4 22 . . . . 305 293 252 78 5801 Initial 162 | . . . 33 . . . . . . . 80 12 . . . . . 4 . . . . . . 137 162 53 22 Average 707 | 2 60 . 8 . 39 . . . . 141 54 4 . . . . 7 1 6 . . . . 104 210 175 50 2066 Influence Increases 10976 | 45 562 274 22 . 337 5 60 . 80 444 28 94 5 420 . . 100 . 70 160 210 . . 581 353 263 128 6735 Destroy 0b10 Robot/C 5460 | . 340 200 20 . 60 . . . 80 200 . . . 180 . . . . . 120 80 . . 60 . 20 . 4100 Destroy 0b10 Robot/NC 475 | 45 45 . . . 35 5 . . . 40 . 15 5 10 . . 15 . 5 . . . . 50 35 25 25 120 Destroy Leader 832 | . 70 20 . . 16 . . . . 32 . 4 . 20 . . 2 . . 10 10 . . 14 2 12 4 616 Allied During Kill 18 | . . 9 2 . . . . . . . . . . . . . . . . . . . . . . . . 7 Successful Hack 199 | . 5 . . . 29 . . . . 33 . 20 . . . . 10 . 15 . . . . 18 41 8 . 20 Disable Machine 540 | . 30 . . . 30 . . . . . . . . . . . . . 15 . . . . 15 105 . 45 300 Anti-Garrison Action 150 | . . . . . . . . . . . . . . . . . . . . . . . . . . . . 150 Destroy Structure 1442 | . 42 . . . 32 . . . . 124 28 40 . . . . 28 . 20 . . . . 94 50 78 54 852 Partial Spotted 225 | . . . . . 30 . . . . 15 . . . . . . . . 15 . . . . 90 . 45 . 30 Lose Combat Pursuer 1635 | . 30 45 . . 105 . 60 . . . . 15 . 210 . . 45 . . 30 120 . . 240 120 75 . 540 Influence Decreases 5187 | 45 376 389 93 . 214 128 60 . 80 215 239 112 5 146 274 . 88 12 64 146 50 180 . 337 307 458 182 987 Entered New Map 1094 | . . 90 38 . . 46 . . . . 149 6 . . 274 . . 8 . 3 4 180 . . 107 128 42 19 Time Decay 3225 | 45 366 239 55 . 190 82 60 . 40 205 70 103 5 146 . . 88 4 64 133 46 . . 157 190 170 140 627 Lost Part 221 | . 10 20 . . . . . . . 10 . . . . . . . . . 10 . . . 30 10 . . 131 Lost Ally 347 | . . 40 . . 24 . . . 40 . 20 3 . . . . . . . . . . . . . 10 . 210 Purge Threat 300 | . . . . . . . . . . . . . . . . . . . . . . . . 150 . 150 . . Squads Dispatched 38 | . 2 . . . 5 . . . . 2 . 5 . . . . 2 . 3 . . . . 6 3 3 2 5 Investigation 16 | . . . . . 3 . . . . 1 . 2 . . . . 1 . 2 . . . . 2 1 1 . 3 Extermination 12 | . . . . . 1 . . . . 1 . 1 . . . . . . 1 . . . . 2 2 2 2 . Reinforcement 10 | . 2 . . . 1 . . . . . . 2 . . . . 1 . . . . . . 2 . . . 2 Assault . | . . . . . . . . . . . . . . . . . . . . . . . . . . . . . Garrison . | . . . . . . . . . . . . . . . . . . . . . . . . . . . . . Intercept . | . . . . . . . . . . . . . . . . . . . . . . . . . . . . . Searches Triggered . | . . . . . . . . . . . . . . . . . . . . . . . . . . . . . Construction Impeded 1 | . . . . . . . . . . . . . . . . . . . . . . . . 1 . . . . Haulers Reinforced 2 | . . . . . . . . . . . . 1 . . . . 1 . . . . . . . . . . . Active Scanning Responses . | . . . . . . . . . . . . . . . . . . . . . . . . . . . . . Cargo Convoy Interrupts . | . . . . . . . . . . . . . . . . . . . . . . . . . . . . . Stealth | -11 -10 -10 -8 -8 -6 -6 -6 -6 -5 -5 -5 -5 -5 -5 -5 -4 -4 -4 -4 -4 -4 -4 -3 -3 -3 -2 -2 -2 --------- Run | Yrd Mat Sub Rec Scr Fac Low Low Zio Pro Fac Was Fac Upp Upp Zhi Pro Fac Was Fac Upp Upp War Pro Res Tes Res Qua Frg Distress Signals 17 | . 1 . . . 1 . . . . . . . . . . . 2 . 1 . . . . 2 1 2 . 7 Communications Jammed . | . . . . . . . . . . . . . . . . . . . . . . . . . . . . . Distress Signals . | . . . . . . . . . . . . . . . . . . . . . . . . . . . . . Times Spotted 513 | . 25 24 . . 14 1 2 . . 12 4 4 . 17 . . 12 5 5 7 10 . 1 19 10 14 4 323 Peak Tracking Total 14 | . 3 3 . . 4 3 4 . . 5 4 2 . 5 . . 6 5 5 5 8 . 1 10 5 7 1 14 Tactical Retreats 53 | . 1 2 . . 4 . 1 . . . . 1 . 6 . . 3 . . 2 3 . . 4 4 3 . 19 Traps | -11 -10 -10 -8 -8 -6 -6 -6 -6 -5 -5 -5 -5 -5 -5 -5 -4 -4 -4 -4 -4 -4 -4 -3 -3 -3 -2 -2 -2 ------- Run | Yrd Mat Sub Rec Scr Fac Low Low Zio Pro Fac Was Fac Upp Upp Zhi Pro Fac Was Fac Upp Upp War Pro Res Tes Res Qua Frg Traps Triggered 21 | . . 1 . . 2 . . . . 2 . . . . . . 2 . . . . 1 . 2 . 1 1 9 Indirectly . | . . . . . . . . . . . . . . . . . . . . . . . . . . . . . Trap Hack Attempts . | . . . . . . . . . . . . . . . . . . . . . . . . . . . . . Triggered . | . . . . . . . . . . . . . . . . . . . . . . . . . . . . . Disarmed . | . . . . . . . . . . . . . . . . . . . . . . . . . . . . . Reprogrammed . | . . . . . . . . . . . . . . . . . . . . . . . . . . . . . Reused 1 | . . . . . . 1 . . . . . . . . . . . . . . . . . . . . . . Traps Extracted . | . . . . . . . . . . . . . . . . . . . . . . . . . . . . . Installed 3 | . . . . . . 3 . . . . . . . . . . . . . . . . . . . . . . Triggered 1 | . . . . . . 1 . . . . . . . . . . . . . . . . . . . . . . Machines | -11 -10 -10 -8 -8 -6 -6 -6 -6 -5 -5 -5 -5 -5 -5 -5 -4 -4 -4 -4 -4 -4 -4 -3 -3 -3 -2 -2 -2 ---------- Run | Yrd Mat Sub Rec Scr Fac Low Low Zio Pro Fac Was Fac Upp Upp Zhi Pro Fac Was Fac Upp Upp War Pro Res Tes Res Qua Frg Machines Disabled 43 | . 2 1 . . 2 . . . . . . . . 1 . . . . 1 . . 1 . 1 7 . 3 24 Max in Single Turn 2 | . 1 . . . 1 . . . . . . . . 1 . . . . 1 . . 1 . 1 1 . 1 2 Garrison Access 10 | . . . . . . . . . . 2 . 2 . . . . 1 . . . . . . 1 1 2 . 1 Machines Repaired . | . . . . . . . . . . . . . . . . . . . . . . . . . . . . . Machines Dismantled 1 | . . . . . . . . . . . . . . . . . . . . . . 1 . . . . . . Machines Sabotaged . | . . . . . . . . . . . . . . . . . . . . . . . . . . . . . Overloaded Fab Kills . | . . . . . . . . . . . . . . . . . . . . . . . . . . . . . Hacking | -11 -10 -10 -8 -8 -6 -6 -6 -6 -5 -5 -5 -5 -5 -5 -5 -4 -4 -4 -4 -4 -4 -4 -3 -3 -3 -2 -2 -2 --------- Run | Yrd Mat Sub Rec Scr Fac Low Low Zio Pro Fac Was Fac Upp Upp Zhi Pro Fac Was Fac Upp Upp War Pro Res Tes Res Qua Frg Machines Accessed 87 | . 5 2 . 2 7 . . . . 9 . 8 . 2 4 . 4 . 7 . 1 2 . 7 6 9 7 5 Terminals 39 | . 3 . . . 3 . . . . 4 . 3 . 1 . . 1 . 3 . . . . 3 3 5 7 3 Fabricators 7 | . . . . . . . . . . 1 . 1 . . . . 1 . 2 . . . . . 1 1 . . Repair Stations 1 | . 1 . . . . . . . . . . . . . . . . . . . . . . . . . . . Recycling Units 13 | . 1 . . . 2 . . . . 1 . 2 . . . . 1 . 2 . . . . 2 . 1 . 1 Scanalyzers 4 | . . . . . 1 . . . . 1 . . . . . . . . . . . . . 1 1 . . . Garrison Access 11 | . . . . . 1 . . . . 2 . 2 . . . . 1 . . . . . . 1 1 2 . 1 Total Hacks 193 | . 9 6 . 8 13 . . . . 16 . 16 . 2 17 . 8 . 21 . 1 5 . 11 17 20 17 6 Successful 118 | . 4 6 . 8 4 . . . . 11 . 10 . 2 17 . 5 . 10 . 1 5 . 8 9 10 3 5 Failed 75 | . 5 . . . 9 . . . . 5 . 6 . . . . 3 . 11 . . . . 3 8 10 14 1 Catastrophic 15 | . 2 . . . 4 . . . . 2 . 1 . . . . . . . . . . . . 2 1 2 1 Database Lockouts . | . . . . . . . . . . . . . . . . . . . . . . . . . . . . . Manual 89 | . 4 . . . 11 . . . . 8 . 11 . . . . 3 . 14 . . . . 4 9 11 9 5 Terminals 92 | . 5 . . . 8 . . . . 7 . 9 . 1 . . 2 . 11 . . . . 4 8 16 17 4 Fabricators 19 | . . . . . . . . . . 2 . 2 . . . . 4 . 5 . . . . . 5 1 . . Repair Stations 2 | . 2 . . . . . . . . . . . . . . . . . . . . . . . . . . . Recycling Units 19 | . 2 . . . 3 . . . . 1 . 2 . . . . 1 . 5 . . . . 3 . 1 . 1 Scanalyzers 11 | . . . . . 1 . . . . 4 . . . . . . . . . . . . . 3 3 . . . Garrison Access 12 | . . . . . 1 . . . . 2 . 3 . . . . 1 . . . . . . 1 1 2 . 1 Terminal Hacks 61 | . 1 6 . 8 . . . . . 2 . 1 . 2 17 . 1 . 4 . 1 5 . 2 . 5 3 3 Record 23 | . . 5 . 8 . . . . . . . . . 1 5 . . . . . . 4 . . . . . . Part Schematic 4 | . . . . . . . . . . . . . . . 4 . . . . . . . . . . . . . Robot Analysis 4 | . . . . . . . . . . . . . . . 4 . . . . . . . . . . . . . Prototype ID Bank 4 | . . . . . . . . . . . . . . . 4 . . . . . . . . . . . . . Open Door 4 | . . . . . . . . . . . . . . 1 . . . . . . 1 1 . . . 1 . . Branch Access Points 5 | . . . . . . . . . . . . 1 . . . . 1 . 1 . . . . 1 . 1 . . Terminal Index 3 | . . . . . . . . . . . . . . . . . . . 1 . . . . . . . 1 1 Alert Level 1 | . . . . . . . . . . . . . . . . . . . . . . . . . . 1 . . Unreport Threat 2 | . . . . . . . . . . . . . . . . . . . . . . . . 1 . 1 . . Locate Traps 3 | . 1 . . . . . . . . 1 . . . . . . . . . . . . . . . . 1 . Recall Investigation 1 | . . . . . . . . . . . . . . . . . . . 1 . . . . . . . . . Recall Extermination 1 | . . . . . . . . . . . . . . . . . . . . . . . . . . 1 . . Hauler Manifests 2 | . . . . . . . . . . 1 . . . . . . . . . . . . . . . . 1 . Zone Layout 2 | . . . . . . . . . . . . . . . . . . . 1 . . . . . . . . 1 Proto ID Catalog 2 | . . 1 . . . . . . . . . . . . . . . . . . . . . . . . . 1 Fabricator Hacks 6 | . . . . . . . . . . . . 1 . . . . 1 . 1 . . . . . 2 1 . . Network Status 4 | . . . . . . . . . . . . 1 . . . . 1 . 1 . . . . . . 1 . . Load Schematic 1 | . . . . . . . . . . . . . . . . . . . . . . . . . 1 . . . Build 1 | . . . . . . . . . . . . . . . . . . . . . . . . . 1 . . . Repair Station Hacks 2 | . 2 . . . . . . . . . . . . . . . . . . . . . . . . . . . Scan Component 1 | . 1 . . . . . . . . . . . . . . . . . . . . . . . . . . . Repair 1 | . 1 . . . . . . . . . . . . . . . . . . . . . . . . . . . Recycling Unit Hacks 1 | . 1 . . . . . . . . . . . . . . . . . . . . . . . . . . . Retrieve Components 1 | . 1 . . . . . . . . . . . . . . . . . . . . . . . . . . . Scanalyzer 9 | . . . . . 1 . . . . 3 . . . . . . . . . . . . . 3 2 . . . Retrieve Study 9 | . . . . . 1 . . . . 3 . . . . . . . . . . . . . 3 2 . . . Garrison Access Hacks 9 | . . . . . . . . . . 2 . 2 . . . . 1 . . . . . . 1 1 2 . . Seal Access 9 | . . . . . . . . . . 2 . 2 . . . . 1 . . . . . . 1 1 2 . . Unauthorized Hacks 30 | . . . . . 3 . . . . 4 . 6 . . . . 2 . 5 . . . . 2 4 2 . 2 Terminals 14 | . . . . . 1 . . . . 2 . 3 . . . . . . 3 . . . . . 3 1 . 1 Track 1 | . . . . . . . . . . . . . . . . . . . . . . . . . 1 . . . Assimilate 5 | . . . . . . . . . . . . 2 . . . . . . 1 . . . . . . 1 . 1 Botnet 6 | . . . . . 1 . . . . 1 . 1 . . . . . . 1 . . . . . 2 . . . Operators 2 | . . . . . . . . . . 1 . . . . . . . . 1 . . . . . . . . . Fabricators 4 | . . . . . . . . . . 1 . 1 . . . . 1 . . . . . . . 1 . . . Fabnet 2 | . . . . . . . . . . . . 1 . . . . . . . . . . . . 1 . . . Haulers 2 | . . . . . . . . . . 1 . . . . . . 1 . . . . . . . . . . . Repair Stations . | . . . . . . . . . . . . . . . . . . . . . . . . . . . . . Recycling Units 12 | . . . . . 2 . . . . 1 . 2 . . . . 1 . 2 . . . . 2 . 1 . 1 Fedlink 12 | . . . . . 2 . . . . 1 . 2 . . . . 1 . 2 . . . . 2 . 1 . 1 Scanalyzers . | . . . . . . . . . . . . . . . . . . . . . . . . . . . . . Garrison Access . | . . . . . . . . . . . . . . . . . . . . . . . . . . . . . Data Cores Recovered 3 | . . . . . . . . . . . . . . . . . . . . . . . . . 1 1 . 1 Used . | . . . . . . . . . . . . . . . . . . . . . . . . . . . . . Hacking Detections 43 | . 2 . . . 5 . . . . 6 . 3 . . . . 2 . 6 . . . . 2 5 4 6 2 Full Trace Events 1 | . . . . . . . . . . . . . . . . . . . . . . . . . 1 . . . Feedback Events . | . . . . . . . . . . . . . . . . . . . . . . . . . . . . . Feedback Blocked . | . . . . . . . . . . . . . . . . . . . . . . . . . . . . . Robot Schematics Acquired 4 | . . . . . . . . 4 . . . . . . . . . . . . . . . . . . . . Robots Built . | . . . . . . . . . . . . . . . . . . . . . . . . . . . . . Authchips . | . . . . . . . . . . . . . . . . . . . . . . . . . . . . . Time . | . . . . . . . . . . . . . . . . . . . . . . . . . . . . . Total Robot Build Rating . | . . . . . . . . . . . . . . . . . . . . . . . . . . . . . Part Schematics Acquired 18 | . . . . . . . . 14 . . . . . . 4 . . . . . . . . . . . . . Parts Built 2 | . . . . . . . . . . . . . . . . . . . . . . . . . 2 . . . Authchips . | . . . . . . . . . . . . . . . . . . . . . . . . . . . . . Time 31 | . . . . . . . . . . . . . . . . . . . . . . . . . 31 . . . Total Part Build Rating 10 | . . . . . . . . . . . . . . . . . . . . . . . . . 10 . . . Part Studies Acquired 9 | . . . . . 1 . . . . 3 . . . . . . . . . . . . . 3 2 . . . Parts Repaired 1 | . 1 . . . . . . . . . . . . . . . . . . . . . . . . . . . Time 26 | . 26 . . . . . . . . . . . . . . . . . . . . . . . . . . . Parts Recycled . | . . . . . . . . . . . . . . . . . . . . . . . . . . . . . Recycled Matter . | . . . . . . . . . . . . . . . . . . . . . . . . . . . . . Retrieved Matter . | . . . . . . . . . . . . . . . . . . . . . . . . . . . . . Retrieved Components 10 | . 10 . . . . . . . . . . . . . . . . . . . . . . . . . . . Parts Scanalyzed . | . . . . . . . . . . . . . . . . . . . . . . . . . . . . . Part Schematics Acquired . | . . . . . . . . . . . . . . . . . . . . . . . . . . . . . Parts Damaged . | . . . . . . . . . . . . . . . . . . . . . . . . . . . . . Bothacking | -11 -10 -10 -8 -8 -6 -6 -6 -6 -5 -5 -5 -5 -5 -5 -5 -4 -4 -4 -4 -4 -4 -4 -3 -3 -3 -2 -2 -2 ------------ Run | Yrd Mat Sub Rec Scr Fac Low Low Zio Pro Fac Was Fac Upp Upp Zhi Pro Fac Was Fac Upp Upp War Pro Res Tes Res Qua Frg Used RIF Installer . | . . . . . . . . . . . . . . . . . . . . . . . . . . . . . Robots Hacked 17 | . . . . . . . . . . 1 . . . . . . 1 . . . . . 1 . . 2 . 12 Non-combat 3 | . . . . . . . . . . 1 . . . . . . 1 . . . . . . . . 1 . . Combat 14 | . . . . . . . . . . . . . . . . . . . . . . . 1 . . 1 . 12 Robot Hacks Applied 3 | . . . . . . . . . . 1 . . . . . . 1 . . . . . . . . 1 . . no_distress 1 | . . . . . . . . . . . . . . . . . . . . . . . . . . 1 . . find_chute 2 | . . . . . . . . . . 1 . . . . . . 1 . . . . . . . . . . . Relay Couplers Released 2 | . . . . . . . . . . . . . . . . . . . . . . . . . . . . 2 Machine Destruction 2 | . . . . . . . . . . . . . . . . . . . . . . . . . . . . 2 Fabnet Peak Effective % 3 | . . . . . . . . . . . . . . . . 3 3 3 3 3 3 3 1 1 1 3 3 3 Autooverrided 14 | . . . . . . . . . . . . . . . . . . . . . . . 1 . . 1 . 12 Robots Rewired 3 | . . . . . 1 . . . 2 . . . . . . . . . . . . . . . . . . . Allies Hacked . | . . . . . . . . . . . . . . . . . . . . . . . . . . . . . Hacks Repelled . | . . . . . . . . . . . . . . . . . . . . . . . . . . . . . Allies | -11 -10 -10 -8 -8 -6 -6 -6 -6 -5 -5 -5 -5 -5 -5 -5 -4 -4 -4 -4 -4 -4 -4 -3 -3 -3 -2 -2 -2 -------- Run | Yrd Mat Sub Rec Scr Fac Low Low Zio Pro Fac Was Fac Upp Upp Zhi Pro Fac Was Fac Upp Upp War Pro Res Tes Res Qua Frg Total Allies 55 | . . 10 . . 1 . . . 6 . 19 2 . . . . . . 1 . . . 1 . . 2 . 13 Largest Group 19 | . . 7 2 2 2 . . . 4 . 19 2 . . . . . . 1 . . . 1 . . 1 . 2 Highest-Rated Group 684 | . . 136 38 38 41 . . . 324 . 684 52 . . . . . . 26 . . . 116 . . 82 . 140 Highest-Rated Ally 116 | . . 22 19 19 41 . . . 81 . 50 26 . . . . . . 26 . . . 116 . . 82 . 82 Initial UFD Resources 104 | . . . . . 23 37 37 37 39 39 49 49 55 55 55 58 58 68 68 74 74 74 76 76 90 94 104 104 Total Orders . | . . . . . . . . . . . . . . . . . . . . . . . . . . . . . Ally Attacks 221 | . . 38 7 . 12 . . . 13 . 131 . . . . . . . . . . . . . . 3 . 17 Total Damage 5636 | . . 588 162 . 182 . . . 532 . 3451 . . . . . . . . . . . . . . 21 . 700 Kills 20 | . . 6 1 . . . . . 4 . 9 . . . . . . . . . . . . . . . . . Allies Corrupted . | . . . . . . . . . . . . . . . . . . . . . . . . . . . . . Allies Melted 2 | . . . . . . . . . . . . . . . . . . . . . . . . . . . . 2 Intel | -11 -10 -10 -8 -8 -6 -6 -6 -6 -5 -5 -5 -5 -5 -5 -5 -4 -4 -4 -4 -4 -4 -4 -3 -3 -3 -2 -2 -2 ------- Run | Yrd Mat Sub Rec Scr Fac Low Low Zio Pro Fac Was Fac Upp Upp Zhi Pro Fac Was Fac Upp Upp War Pro Res Tes Res Qua Frg Active Infowar (turns) 13077 | 159 1854 465 . . 453 265 203 399 872 503 150 345 220 867 66 358 321 39 239 280 179 276 232 462 391 347 294 2838 Optics 10396 | . . . . . 250 265 203 399 872 503 150 345 220 867 66 358 321 39 239 280 179 276 232 462 391 347 294 2838 Sensors 7395 | . . . . . 2 265 82 . 522 503 111 340 220 867 66 358 321 39 196 280 179 121 232 444 387 323 294 1243 A.S.S. 1509 | . . . . . . . . . . . . . . . . . . . . . . . . . . . . 1509 Structural 7216 | . . . . . 267 265 198 318 872 503 150 345 220 742 65 358 321 39 239 280 179 121 232 394 391 323 294 100 Seismic 9780 | 159 1854 465 . . 452 265 203 317 872 492 150 345 220 867 64 358 321 39 239 280 179 176 232 230 . 164 294 543 Cloaking 327 | . . . . . . . . . . . . . . . . . . . 63 1 3 . 8 209 . . 18 25 Jamming 209 | . . . . . . . . . . . . . . . . . . . . . . . . . . . . 209 Robot Analysis Total 4 | . . . . . . . . . . . . . . . 4 . . . . . . . . . . . . . Derelict Logs Recovered 16 | . . 2 . 4 . 2 1 . 2 . . . 1 1 . 3 . . . . . . . . . . . . Drone Launches . | . . . . . . . . . . . . . . . . . . . . . . . . . . . . . Drone Recoveries . | . . . . . . . . . . . . . . . . . . . . . . . . . . . . . Exploration | -11 -10 -10 -8 -8 -6 -6 -6 -6 -5 -5 -5 -5 -5 -5 -5 -4 -4 -4 -4 -4 -4 -4 -3 -3 -3 -2 -2 -2 ------------- Run | Yrd Mat Sub Rec Scr Fac Low Low Zio Pro Fac Was Fac Upp Upp Zhi Pro Fac Was Fac Upp Upp War Pro Res Tes Res Qua Frg Turns Passed 18445 | 283 1857 2475 357 2860 468 265 203 399 872 503 150 345 220 867 66 358 321 39 239 280 179 276 232 462 391 347 294 2837 Spaces Moved 23327 | 91 791 1285 138 1696 882 340 327 1100 846 1043 344 728 608 1511 148 691 705 118 411 622 367 683 443 941 912 854 849 3853 Core 3 | 3 . . . . . . . . . . . . . . . . . . . . . . . . . . . . Treads 3366 | 88 791 668 123 1696 . . . . . . . . . . . . . . . . . . . . . . . . Legs . | . . . . . . . . . . . . . . . . . . . . . . . . . . . . . Wheels 632 | . . 617 15 . . . . . . . . . . . . . . . . . . . . . . . . . Hover 7325 | . . . . . . . . . . . . . . . . . . . . . . . . 857 912 854 849 3853 Flight 12001 | . . . . . 882 340 327 1100 846 1043 344 728 608 1511 148 691 705 118 411 622 367 683 443 84 . . . . Fastest Speed 16 | 50 160 120 130 160 28 28 28 28 28 28 28 28 28 28 29 29 29 29 29 29 29 26 26 16 21 16 16 16 Average Speed 51 | 156 160 157 236 167 30 28 28 28 28 28 29 28 28 29 29 29 29 29 29 29 29 27 26 25 21 21 20 31 Slowest Speed 360 | 160 160 360 250 255 98 28 28 28 28 98 98 98 28 99 29 29 29 29 29 99 29 29 26 86 21 83 21 107 Overloaded Moves 184 | . . . . . . . . . . . . . . . . . . . . . . . . 35 . 8 15 126 Propulsion Burnouts . | . . . . . . . . . . . . . . . . . . . . . . . . . . . . . Robots Hopped 14 | . . . . . 7 . . . . . . . . 1 . . 2 . 2 . . 2 . . . . . . Potential Cave-ins . | . . . . . . . . . . . . . . . . . . . . . . . . . . . . . Cave-ins Triggered . | . . . . . . . . . . . . . . . . . . . . . . . . . . . . . Teleports 1 | . . . . . . . . . . . . . . . . . . . . . . . . . . . . 1 Exploration Rate (%) 61 | 4 96 83 40 88 29 53 55 82 85 32 96 23 72 94 61 67 26 92 10 64 54 88 66 30 87 30 91 74 Regions Visited 28 Branch Regions 18 Pre-discovered Areas 13 | . . 3 . 3 1 . . 1 1 . . . . . 3 1 . . . . . . . . . . . . Known Exits Taken 20 | . . 1 . . 1 1 1 1 1 . . 1 1 1 1 1 . . 1 1 1 1 1 1 1 1 1 . Unknown Exits Taken 4 | 1 1 . 1 1 . . . . . . . . . . . . . . . . . . . . . . . . Scrap Searched 32 | . . 9 . 6 . 1 3 5 . . . . 2 2 . . . . . 2 1 . 1 . . . . . Spaces Dug 374 | . . 79 . . 31 2 . . 4 22 . 19 4 26 . 15 14 . 10 20 1 . 7 12 31 24 18 35 Terrain Destroyed 1219 | . 35 183 . . 33 2 . . 6 66 . 20 4 138 . 15 14 . 10 35 63 . 7 46 31 26 18 467 Melee 158 | . . . . . 8 . . . 3 16 . 16 2 7 . 11 14 . 7 13 1 . 7 12 12 15 7 7 Projectile 113 | . . 4 . . 3 2 . . 3 11 . 4 2 4 . 4 . . 3 8 2 . . . 4 11 11 37 AOE 858 | . 35 179 . . 22 . . . . 39 . . . 127 . . . . . 14 60 . . 34 15 . . 333 Terrain Rammed . | . . . . . . . . . . . . . . . . . . . . . . . . . . . . . Walls Destroyed . | . . . . . . . . . . . . . . . . . . . . . . . . . . . . . Machines Disabled . | . . . . . . . . . . . . . . . . . . . . . . . . . . . . . Actions | -11 -10 -10 -8 -8 -6 -6 -6 -6 -5 -5 -5 -5 -5 -5 -5 -4 -4 -4 -4 -4 -4 -4 -3 -3 -3 -2 -2 -2 --------- Run | Yrd Mat Sub Rec Scr Fac Low Low Zio Pro Fac Was Fac Upp Upp Zhi Pro Fac Was Fac Upp Upp War Pro Res Tes Res Qua Frg Total 28366 | 193 1302 1634 169 1722 1024 491 437 1187 1471 1169 390 821 641 1865 168 819 765 122 506 683 424 756 525 1106 1053 960 923 5040 Wait 3308 | 73 443 227 30 . 28 135 104 66 609 45 42 52 21 282 . 107 26 3 81 29 44 48 59 94 47 39 22 552 Move 23276 | 90 790 1284 137 1695 870 339 326 1099 845 1043 343 727 607 1508 147 690 701 117 406 621 366 679 442 940 911 853 848 3852 Hop 10 | . . . . . 4 . . . . . . . . 1 . . 2 . 2 . . 1 . . . . . . Pick Up 118 | 3 11 6 . 7 13 . . 7 . 3 . 2 . 1 6 . 1 1 . . . 4 1 10 6 2 4 30 Fast Attach 78 | 7 1 5 1 3 2 . 3 2 . 1 1 . . 3 1 . 1 . . . 2 . . 6 7 3 6 23 Attach 68 | . 1 3 . 1 8 . . . . 2 1 1 . . . . 1 . . . 1 1 . 10 3 2 1 32 Detach 24 | . . . . . 1 . 1 . . . 1 . . . . . . . . . . . . . 3 1 . 17 Swap 255 | . 12 19 . 3 12 2 . 6 3 20 1 8 4 10 9 4 2 . 3 8 2 10 1 9 29 8 5 65 Drop 121 | . 3 10 1 13 8 . 2 6 . 3 1 2 . 4 5 . . 1 . . . 5 1 8 13 5 6 24 Fire 680 | 20 40 80 . . 9 4 . . 3 23 . 6 2 45 . 5 1 . 4 12 4 . . 2 6 10 16 388 Melee 314 | . . . . . 25 8 . 1 3 29 . 23 7 11 . 13 30 . 10 13 5 . 21 27 28 33 15 12 Ram . | . . . . . . . . . . . . . . . . . . . . . . . . . . . . . Kick . | . . . . . . . . . . . . . . . . . . . . . . . . . . . . . Crush 1 | . 1 . . . . . . . . . . . . . . . . . . . . . . . . . . . Escape Stasis 78 | . . . . . 30 . . . . . . . . . . . . . . . . . . . . 4 . 44 Rewire 23 | . . . . . 14 . . . 8 . . . . . . . . . . . . . . . . . . 1 Trap 3 | . . . . . . 3 . . . . . . . . . . . . . . . . . . . . . . Miscellaneous 9 | . . . . . . . 1 . . . . . . . . . . . . . . 8 . . . . . . Route ------- -11/Scrapyard -10/Materials (discovered 6 exits: [*Mat x3] / [*Min x2] / *Sub) -10/Subcaves (discovered 3 exits: [*Mat x2] / *Rec) -8/Recycling -8/Scraptown (discovered 2 exits: *Fac x2) -6/Factory (discovered 3 exits: *Fac / *Low / [*Ext]) -6/Lower Caves -6/Lower Caves (discovered 2 exits: *Fac / *Zio) -6/Zion -5/Proximity Caves -5/Factory -5/Waste -5/Factory (discovered 2 exits: *Upp x2) -5/Upper Caves -5/Upper Caves (discovered 2 exits: *Fac / *Zhi) -5/Zhirov -4/Proximity Caves -4/Factory (discovered 3 exits: Upp x2 / Arm) -4/Waste -4/Factory (discovered 4 exits: *Res / *Upp x2 / Arm) -4/Upper Caves -4/Upper Caves (discovered 2 exits: *Res / *War) -4/Warlord -3/Proximity Caves -3/Research (discovered 3 exits: Res / *Tes x2) -3/Testing -2/Research (discovered 3 exits: *Acc / *Qua x2) -2/Quarantine (discovered 3 exits: *Acc / *Sec / *Frg) -2/Protoforge 0bPrime History --------- Turn | Location | Event 16 | -11/Scrapyard | Discovered new exit (range 16) 284 | -11/Scrapyard | Entered Materials 325 | -10/Materials | Build established: Mutant 419 | -10/Materials | Discovered new exit (range 14) 573 | -10/Materials | Discovered new exit (range 4) 843 | -10/Materials | Discovered new exit (range 9) 1112 | -10/Materials | Discovered new exit (range 14) 1310 | -10/Materials | Repaired Lgt. Treads 1369 | -10/Materials | Discovered new exit (range 7) 1844 | -10/Materials | Discovered new exit (range 14) 2141 | -10/Materials | Entered Subcaves 2142 | -10/Subcaves | Approached by a straggling Scientist 2270 | -10/Subcaves | Visited 4L-MR0's lab 2368 | -10/Subcaves | Ambushed by Subdweller buried in earth 2599 | -10/Subcaves | Visited triangular shrine 2606 | -10/Subcaves | Found Prototype Device 2606 | -10/Subcaves | Identified V3-11A's Pendant 2611 | -10/Subcaves | Befriended Subdweller 2758 | -10/Subcaves | Disturbed a concealed Subdweller 2761 | -10/Subcaves | Befriended Subdweller 2816 | -10/Subcaves | A swath of the cavern ceiling suddenly collapsed 2816 | -10/Subcaves | Befriended Subdweller 2930 | -10/Subcaves | Shifting Twisted Machinery released Sub. Laser 2930 | -10/Subcaves | Shifting Twisted Machinery released Sub. Machine Gun 3135 | -10/Subcaves | Visited Clippyterm 3139 | -10/Subcaves | Learned location of Deep Caves (-6) 3139 | -10/Subcaves | Learned Factory emergency access door positions 3163 | -10/Subcaves | Shifting Twisted Machinery released Sub. Power Source 3262 | -10/Subcaves | Shifting Twisted Machinery released Scrap Shield 3427 | -10/Subcaves | Learned location of Zion (-6) 3427 | -10/Subcaves | Met a Zionite searching for "candidates" 3430 | -10/Subcaves | Discovered new exit (range 8) 3446 | -10/Subcaves | Befriended Subdweller 3519 | -10/Subcaves | A Subdweller sparked back to life 3519 | -10/Subcaves | A Subdweller sparked back to life 3519 | -10/Subcaves | A Subdweller sparked back to life 3521 | -10/Subcaves | Befriended Subdweller 3521 | -10/Subcaves | Befriended Subdweller 3521 | -10/Subcaves | Befriended Subdweller 3554 | -10/Subcaves | Found Flightbrick 3572 | -10/Subcaves | Murdered 3 allies 3703 | -10/Subcaves | Shifting Twisted Machinery released Sub. Monowheel 3710 | -10/Subcaves | Shifting Twisted Machinery released Sub. Laser 3964 | -10/Subcaves | A swath of the cavern ceiling suddenly collapsed 3996 | -10/Subcaves | Identified exit to Recycling 4058 | -10/Subcaves | Discovered new exit (range 3) 4396 | -10/Subcaves | Ambushed by Subdweller buried in earth 4401 | -10/Subcaves | Befriended Subdweller 4421 | -10/Subcaves | Befriended Subdweller 4453 | -10/Subcaves | Ambushed by Subdweller buried in earth 4461 | -10/Subcaves | Befriended Subdweller 4616 | -10/Subcaves | Entered Recycling 4616 | -8/Recycling | Accompanied by 2 allies 4889 | -8/Recycling | Scanned before Scraplab entrance 4927 | -8/Recycling | Entered Scraplab 4957 | -8/Recycling | Discovered new exit (range 2) 4973 | -8/Recycling | Entered Scraptown 4973 | -8/Scraptown | Accompanied by 2 allies 5138 | -8/Scraptown | Delivered V3-11A's Pendant to T0-NE2 in exchange for information 5280 | -8/Scraptown | Heard Great Nut preacher, LISTEN AND RECITE! 5298 | -8/Scraptown | Discovered new exit (range 11) 5374 | -8/Scraptown | Scanned Subdweller tech in exchange for log data 5377 | -8/Scraptown | Learned 12 Research zone layouts 5379 | -8/Scraptown | Learned location of Quarantine (-2) 5381 | -8/Scraptown | Learned location of Extension (-6) 5422 | -8/Scraptown | Visited Cyclists 5480 | -8/Scraptown | Visited Comm Corps 5542 | -8/Scraptown | Visited Shadow of the Wyrm 5579 | -8/Scraptown | Visited TADAMA 5851 | -8/Scraptown | Visited UFD Registry 5851 | -8/Scraptown | Registered with UFD as "Matterbot" 5872 | -8/Scraptown | Visited SPCMW 5897 | -8/Scraptown | Visited Symbiants 5950 | -8/Scraptown | Visited The Evicted 6024 | -8/Scraptown | Visited Abandonware Association 6044 | -8/Scraptown | Learned abandonware demo "REBOOT5.EXE" 6080 | -8/Scraptown | Visited Research Penetration Think Tank 6117 | -8/Scraptown | Visited Derelict Rescue Squad 6324 | -8/Scraptown | Visited Curators Association 6382 | -8/Scraptown | Visited Scrapoid Pod Storage 6409 | -8/Scraptown | Visited Junk Repository 6443 | -8/Scraptown | Visited Junk Repository 6486 | -8/Scraptown | Visited DA-N13 Charitable Foundation 6493 | -8/Scraptown | Found DCF Scrap (27 items) 6541 | -8/Scraptown | Visited LU-1G1's Boring Crew 6567 | -8/Scraptown | Visited Chapter 10 6758 | -8/Scraptown | Discovered new exit (range 5) 7375 | -8/Scraptown | Build established: Derelict-Mutant 7741 | -8/Scraptown | Met Optimus 7741 | -8/Scraptown | Accepted into 0bPrime 7833 | -8/Scraptown | Entered Factory 7833 | -6/Factory | Accompanied by 2 allies 7833 | -6/Factory | Evolved 8 slots: Propulsion x5, Utility x3 7836 | -6/Factory | Attached Flightbrick, gained temporary slots: Utility x3 7920 | -6/Factory | Loaded intel: 8 recycling unit locations 7936 | -6/Factory | Discovered new exit (range 12) 8074 | -6/Factory | Discovered new exit (range 18) 8077 | -6/Factory | Learned location of Protoforge (-2) 8167 | -6/Factory | Spotted B-75 Beast 8293 | -6/Factory | Discovered new exit (range 12) 8298 | -6/Factory | Identified exit to Lower Caves 8301 | -6/Factory | Entered Lower Caves 8310 | -6/Lower Caves | Learned Factory stockpile data 8357 | -6/Lower Caves | Learned Factory interactive machine intel 8564 | -6/Lower Caves | Discovered new exit (range 7) 8566 | -6/Lower Caves | Identified exit to Lower Caves 8566 | -6/Lower Caves | Entered another Lower Caves area 8576 | -6/Lower Caves | Discovered new exit (range 12) 8579 | -6/Lower Caves | Identified exit to Factory 8583 | -6/Lower Caves | Build established: Scout 8599 | -6/Lower Caves | Learned location of 1 exit from Factory 8602 | -6/Lower Caves | Found DCF Scrap (14 items) 8615 | -6/Lower Caves | Activated DRS Beacon 8646 | -6/Lower Caves | Prototype Device suddenly appears! 8649 | -6/Lower Caves | Found Prototype Device 8649 | -6/Lower Caves | Identified Amulet of Y3-NDR 8763 | -6/Lower Caves | Discovered new exit (range 8) 8764 | -6/Lower Caves | Identified exit to Zion 8769 | -6/Lower Caves | Entered Zion 8787 | -6/Zion | Discovered new exit (range 12) 8852 | -6/Zion | Found Prototype Special Weapon 8852 | -6/Zion | Identified RU-N14's Throwing Claymores 8855 | -6/Zion | Found RU-N14's Throwing Claymores 8856 | -6/Zion | Found RU-N14's Throwing Claymores 8860 | -6/Zion | Found RU-N14's Throwing Claymores 8923 | -6/Zion | Received a hallucinogenic algorithm 9012 | -6/Zion | Learned Factory emergency access door positions 9030 | -6/Zion | Found Prototype Device 9030 | -6/Zion | Identified Mobile Refinery Mk. CCLXVII 9168 | -6/Zion | Identified exit to Proximity Caves 9168 | -6/Zion | Entered Proximity Caves 9304 | -5/Proximity Caves | Received a Behemoth hack from an annoying Tinkerer 9377 | -5/Proximity Caves | Build established: Sprinter 9392 | -5/Proximity Caves | Joined by bewildered Wizard 9393 | -5/Proximity Caves | Joined by bewildered Wizard 9432 | -5/Proximity Caves | Joined by bewildered Wizard 9433 | -5/Proximity Caves | Joined by bewildered Wizard 9603 | -5/Proximity Caves | Learned location of Warlord (-4) 9748 | -5/Proximity Caves | Discovered exit to Factory (range 13) 9824 | -5/Proximity Caves | Build established: Scout 9903 | -5/Proximity Caves | Spotted B-75 Beast 10040 | -5/Proximity Caves | Entered Factory 10040 | -5/Factory | Evolved 2 slots: Utility x2 10041 | -5/Factory | Identified exit to Factory 10044 | -5/Factory | Loaded intel: 53 interactive machine locations 10333 | -5/Factory | Build established: Hacker-Scout 10471 | -5/Factory | Spotted B-75 Beast 10542 | -5/Factory | Loaded intel: 8 recycling unit locations 10543 | -5/Factory | Manually triggered Chute Trap 10543 | -5/Factory | Sucked down chute 10543 | -5/Factory | Entered Waste 10546 | -5/Waste | Spotted C-40 Crusher 10547 | -5/Waste | Spotted C-40 Crusher 10547 | -5/Waste | Spotted C-40 Crusher 10549 | -5/Waste | Spotted C-40 Crusher 10551 | -5/Waste | Spotted C-40 Crusher 10559 | -5/Waste | Spotted C-40 Crusher 10566 | -5/Waste | Warlord forces began an assault 10574 | -5/Waste | Allies destroyed C-40 Crusher 10578 | -5/Waste | Allies destroyed C-40 Crusher 10583 | -5/Waste | Allies destroyed C-40 Crusher 10627 | -5/Waste | Allies destroyed C-40 Crusher 10629 | -5/Waste | Allies destroyed C-40 Crusher 10648 | -5/Waste | Discovered new exit (range 12) 10693 | -5/Waste | Identified exit to Factory 10693 | -5/Waste | Entered Factory 10835 | -5/Factory | Spotted B-75 Beast 10846 | -5/Factory | Identified exit to Upper Caves 10901 | -5/Factory | Loaded intel: 8 recycling unit locations 11038 | -5/Factory | Entered Upper Caves 11149 | -5/Upper Caves | Learned Factory non-interactive machine intel 11161 | -5/Upper Caves | Discovered new exit (range 6) 11162 | -5/Upper Caves | Identified exit to Upper Caves 11258 | -5/Upper Caves | Entered another Upper Caves area 11279 | -5/Upper Caves | Found Alien Artifact 11480 | -5/Upper Caves | Discovered new exit (range 11) 11483 | -5/Upper Caves | Identified exit to Zhirov 11629 | -5/Upper Caves | Discovered exit to Factory (range 8) 12125 | -5/Upper Caves | Entered Zhirov 12125 | -5/Zhirov | Discovered new exit (range 3) 12131 | -5/Zhirov | Met Zhirov 12139 | -5/Zhirov | Found Alien Artifact 12139 | -5/Zhirov | Identified Integrated Dissipator 12139 | -5/Zhirov | Installed Integrated Dissipator, increased core heat dissipation (+20) 12173 | -5/Zhirov | Found Alien Artifact 12180 | -5/Zhirov | Learned location of Testing (-3) 12180 | -5/Zhirov | Learned location of Command (-1) 12183 | -5/Zhirov | Zhirov requested help retrieving the SGEMP Prototype 12190 | -5/Zhirov | Identified exit to Proximity Caves 12191 | -5/Zhirov | Entered Proximity Caves 12403 | -4/Proximity Caves | Learned 4 Research zone layouts 12462 | -4/Proximity Caves | Learned 4 Research zone layouts 12466 | -4/Proximity Caves | Learned location of Armory (-4) 12468 | -4/Proximity Caves | Discovered exit to Factory (range 20) 12549 | -4/Proximity Caves | Entered Factory 12549 | -4/Factory | Evolved 2 slots: Utility x2 12550 | -4/Factory | Loaded intel: 208 non-interactive machine locations 12811 | -4/Factory | Identified exit to Upper Caves 12811 | -4/Factory | Identified exit to Armory 12867 | -4/Factory | Loaded intel: 8 recycling unit locations 12870 | -4/Factory | Sucked down chute 12870 | -4/Factory | Entered Waste 12871 | -4/Waste | Spotted C-40 Crusher 12873 | -4/Waste | Spotted C-40 Crusher 12876 | -4/Waste | Spotted C-40 Crusher 12881 | -4/Waste | Spotted C-40 Crusher 12885 | -4/Waste | EMP discharged 12885 | -4/Waste | System corruption reached 10% 12902 | -4/Waste | Spotted C-40 Crusher 12903 | -4/Waste | Discovered new exit (range 22) 12905 | -4/Waste | Spotted C-40 Crusher 12909 | -4/Waste | Identified exit to Factory 12909 | -4/Waste | Entered Factory 12919 | -4/Factory | Discovered new exit (range 8) 12921 | -4/Factory | Identified exit to Research 12954 | -4/Factory | Loaded intel: 8 recycling unit locations 13012 | -4/Factory | Spotted B-86 Titan 13148 | -4/Factory | Entered Upper Caves 13289 | -4/Upper Caves | Attracted the attention of an 0b10 checkpoint 13334 | -4/Upper Caves | Build established: Hacker-Ninja 13427 | -4/Upper Caves | Discovered new exit (range 5) 13428 | -4/Upper Caves | Identified exit to Upper Caves 13428 | -4/Upper Caves | Entered another Upper Caves area 13429 | -4/Upper Caves | Identified exit to Warlord 13430 | -4/Upper Caves | Discovered exit to Research (range 14) 13509 | -4/Upper Caves | Encountered a Warlord checkpoint 13578 | -4/Upper Caves | Lost 3 allies 13607 | -4/Upper Caves | Entered Warlord 13631 | -4/Warlord | System corruption cleaned by Quarantine Array 13814 | -4/Warlord | Found Prototype Processor 13814 | -4/Warlord | Identified Spectral Analyzer 13839 | -4/Warlord | Visited the Vortex Lab 13841 | -4/Warlord | Found Prototype Energy Cannon 13841 | -4/Warlord | Identified Vortex Cannon 13858 | -4/Warlord | Warlord's base attacked by MAIN.C 13880 | -4/Warlord | Discovered new exit (range 14) 13883 | -4/Warlord | Identified exit to Proximity Caves 13883 | -4/Warlord | Entered Proximity Caves 13915 | -3/Proximity Caves | Spotted B-86 Titan 14107 | -3/Proximity Caves | Discovered exit to Research (range 4) 14115 | -3/Proximity Caves | Entered Research 14115 | -3/Research | Evolved 2 slots: Power x1, Utility x1 14116 | -3/Research | Identified exit to Research 14181 | -3/Research | Spotted B-86 Titan 14373 | -3/Research | Identified exit to Testing 14394 | -3/Research | Lost 3 parts (3u) 14449 | -3/Research | Loaded intel: 5 recycling unit locations 14450 | -3/Research | Build established: Hacker-Sprinter 14566 | -3/Research | Found Fusion Bomb Launcher 14577 | -3/Research | Entered Testing 14588 | -3/Testing | Found Prototype Energy Gun 14588 | -3/Testing | Identified Hyp. EM Gauss Rifle 14606 | -3/Testing | Found Prototype Processor 14606 | -3/Testing | Identified Exp. Target Analyzer 14609 | -3/Testing | Found Prototype Hackware 14609 | -3/Testing | Identified Exp. System Shield 14658 | -3/Testing | Found Prototype Device 14658 | -3/Testing | Identified AEGIS Remote Shield 14679 | -3/Testing | Found Prototype Energy Cannon 14679 | -3/Testing | Identified Disintegrator 14726 | -3/Testing | Fabricated Adv. Signal Interpreter? 14754 | -3/Testing | Found Prototype Device 14754 | -3/Testing | Identified Exp. Thermal Defense Suite 14786 | -3/Testing | Found Prototype Device 14786 | -3/Testing | Identified Adv. Kinecellerator 14800 | -3/Testing | Found Prototype Energy Cannon 14800 | -3/Testing | Identified Null Cannon 14828 | -3/Testing | Spotted Striker 14865 | -3/Testing | Found Prototype Protection 14867 | -3/Testing | Identified Centrium Heavy Armor Plating 14917 | -3/Testing | Found Prototype Device 14917 | -3/Testing | Identified 2N-1CE's Frost Array 14967 | -3/Testing | Discovered exit to Research (range 5) 14968 | -3/Testing | Entered Research 14968 | -2/Research | Evolved 2 slots: Utility x2 14990 | -2/Research | Loaded intel: 5 recycling unit locations 15031 | -2/Research | Build established: Hacker-Scout 15212 | -2/Research | Discovered new exit (range 14) 15238 | -2/Research | Identified exit to Access 15271 | -2/Research | Identified exit to Quarantine 15271 | -2/Research | Watched by a mysterious "MATRIX" hacker. 15315 | -2/Research | Entered Quarantine 15360 | -2/Quarantine | Found Alien Artifact 15361 | -2/Quarantine | Identified Subatomic Replicator 15361 | -2/Quarantine | Used Subatomic Replicator to create Alien Artifact 15424 | -2/Quarantine | Discovered exit to Access (range 3) 15569 | -2/Quarantine | Found Alien Slashing Weapon 15569 | -2/Quarantine | Identified Sigix Broadsword 15594 | -2/Quarantine | Spotted Fortress 15607 | -2/Quarantine | Discovered new exit (range 5) 15607 | -2/Quarantine | Discovered new exit (range 6) 15608 | -2/Quarantine | Identified exit to Section 7 15609 | -2/Quarantine | Identified exit to Protoforge 15609 | -2/Quarantine | Entered Protoforge 15625 | -2/Protoforge | Superfortress began startup sequence 15650 | -2/Protoforge | Spotted B-90 Cyclops 15695 | -2/Protoforge | Spotted EXE-6 15695 | -2/Protoforge | Spotted EXE-6 15696 | -2/Protoforge | Spotted SKR-2 15696 | -2/Protoforge | Spotted SKR-2 15697 | -2/Protoforge | Spotted SKR-2 15697 | -2/Protoforge | Spotted AP7-3 15704 | -2/Protoforge | Spotted EXE-6 15708 | -2/Protoforge | UFD initiated attack on Protoforge (Readiness: High) 15708 | -2/Protoforge | Loaded intel: 3 recycling unit locations 15725 | -2/Protoforge | Spotted EXE-6 15730 | -2/Protoforge | Build established: Hacker-Ninja 15736 | -2/Protoforge | Identified Dimensional Node Initializer 15736 | -2/Protoforge | Initialized slip node 15747 | -2/Protoforge | Spotted Overlord 15769 | -2/Protoforge | Identified Supercharged TR 15769 | -2/Protoforge | Warped through subspace to slip node 15770 | -2/Protoforge | Optimus attacked Superfortress 15770 | -2/Protoforge | Spotted Executioner 15770 | -2/Protoforge | Optimus greeted in Protoforge 15788 | -2/Protoforge | Spotted Executioner 15798 | -2/Protoforge | Found Prototype Power Core 15798 | -2/Protoforge | Identified Cep. Zero-point Core 15801 | -2/Protoforge | Lost 5 parts (1p2n1u1w) 15803 | -2/Protoforge | Found Prototype Processor 15803 | -2/Protoforge | Identified Exp. Core Analyzer 15805 | -2/Protoforge | Found Prototype Processor 15805 | -2/Protoforge | Identified Exp. Targeting Computer 15839 | -2/Protoforge | Lost 15 allies 15882 | -2/Protoforge | Found Exp. Core Analyzer 15884 | -2/Protoforge | Spotted AP7-3 15900 | -2/Protoforge | Spotted Striker 15910 | -2/Protoforge | Found Prototype Ballistic Gun 15910 | -2/Protoforge | Identified Cep. XC Strikerail 15926 | -2/Protoforge | Lost 6 allies 15937 | -2/Protoforge | Spotted Executioner 15937 | -2/Protoforge | Spotted Hotshot 15938 | -2/Protoforge | Spotted Hotshot 15943 | -2/Protoforge | Forge Plexus network access discovered 15958 | -2/Protoforge | Spotted Decapitator 15960 | -2/Protoforge | Spotted Decapitator 15963 | -2/Protoforge | Spotted Decapitator 15969 | -2/Protoforge | Destroyed 02F08-K 15972 | -2/Protoforge | Destroyed Decapitator 15975 | -2/Protoforge | Destroyed Decapitator 16059 | -2/Protoforge | Spotted V263-t 16059 | -2/Protoforge | Spotted V630-b 16059 | -2/Protoforge | Spotted V248-i 16059 | -2/Protoforge | Found Cep. Antigrav Storage Unit 16062 | -2/Protoforge | Found Cep. Matter Streamer 16070 | -2/Protoforge | Found Crosscalibrator 16073 | -2/Protoforge | Spotted Immortal 16073 | -2/Protoforge | Spotted Immortal 16075 | -2/Protoforge | Spotted Decapitator 16075 | -2/Protoforge | Spotted Decapitator 16075 | -2/Protoforge | Spotted Decapitator 16075 | -2/Protoforge | Spotted Decapitator 16081 | -2/Protoforge | Destroyed Decapitator 16081 | -2/Protoforge | Destroyed Decapitator 16087 | -2/Protoforge | Destroyed Decapitator 16087 | -2/Protoforge | Destroyed Decapitator 16111 | -2/Protoforge | Spotted Hotshot 16159 | -2/Protoforge | Found Cep. Combat Aerolev Unit 16172 | -2/Protoforge | Spotted Hotshot 16179 | -2/Protoforge | Destroyed Immortal 16188 | -2/Protoforge | Build established: Scavenger-Scout 16248 | -2/Protoforge | Spotted Decapitator 16248 | -2/Protoforge | Spotted Decapitator 16248 | -2/Protoforge | Spotted Decapitator 16258 | -2/Protoforge | Lost 3 parts (1n1u1w) 16258 | -2/Protoforge | Spotted Decapitator 16322 | -2/Protoforge | Found Cep. Plasma Driver 16324 | -2/Protoforge | Found Faulty Cep. Plasma Driver 16325 | -2/Protoforge | Found Faulty Cep. Helical Railcannon 16333 | -2/Protoforge | Found Faulty Cep. Miniperforator 16334 | -2/Protoforge | Found Cep. Helical Railcannon 16340 | -2/Protoforge | Found Faulty Cep. Miniperforator 16341 | -2/Protoforge | Found Faulty Cep. Plasma Driver 16430 | -2/Protoforge | Found Cep. Deflector Sword 16474 | -2/Protoforge | Spotted V623-p 16474 | -2/Protoforge | Spotted V189-j 16492 | -2/Protoforge | Destroyed Hotshot 16500 | -2/Protoforge | Destroyed Hotshot 16513 | -2/Protoforge | Destroyed Decapitator 16513 | -2/Protoforge | Destroyed Decapitator 16526 | -2/Protoforge | Destroyed Decapitator 16557 | -2/Protoforge | Spotted V716-a 16557 | -2/Protoforge | Found Cep. Tactical Fusion Warhead 16578 | -2/Protoforge | Spotted Executioner 16584 | -2/Protoforge | Destroyed Executioner 16672 | -2/Protoforge | Found Faulty Cep. Zero-point Core 16674 | -2/Protoforge | Found Faulty Cep. Zero-point Core 16681 | -2/Protoforge | Found Faulty Cep. Zero-point Core 16698 | -2/Protoforge | Found Cep. Gyrokinetic System 16700 | -2/Protoforge | Found Faulty Cep. Combat Aerolev Unit 16702 | -2/Protoforge | Found Cep. Combat Aerolev Unit 16705 | -2/Protoforge | Found Cep. Gyrokinetic System 16746 | -2/Protoforge | Spotted Decapitator 16751 | -2/Protoforge | Spotted Decapitator 16751 | -2/Protoforge | Spotted V471-r 16751 | -2/Protoforge | Spotted V836-r 16752 | -2/Protoforge | Spotted Decapitator 16762 | -2/Protoforge | Spotted Executioner 16764 | -2/Protoforge | Destroyed Executioner 16765 | -2/Protoforge | Spotted Executioner 16770 | -2/Protoforge | Destroyed Executioner 16810 | -2/Protoforge | Spotted Immortal 16826 | -2/Protoforge | Found Faulty Exp. Active Sensor Suite 16829 | -2/Protoforge | Found Faulty Exp. Active Sensor Suite 16953 | -2/Protoforge | Destroyed Decapitator 16953 | -2/Protoforge | Destroyed Decapitator 16953 | -2/Protoforge | Destroyed Decapitator 16970 | -2/Protoforge | Found Cep. Weapon Articulator 16972 | -2/Protoforge | Found Cep. Networked Targeting System 17019 | -2/Protoforge | Spotted Striker 17022 | -2/Protoforge | Destroyed Striker 17023 | -2/Protoforge | UFD reported confirmed Drillbomb installation 17024 | -2/Protoforge | UFD reported confirmed Drillbomb installation 17028 | -2/Protoforge | Spotted Striker 17041 | -2/Protoforge | Spotted Executioner 17041 | -2/Protoforge | Destroyed Executioner 17055 | -2/Protoforge | Spotted Executioner 17057 | -2/Protoforge | Spotted Striker 17060 | -2/Protoforge | Destroyed Striker 17092 | -2/Protoforge | Lost 9 allies 17109 | -2/Protoforge | Spotted Hotshot 17110 | -2/Protoforge | Destroyed Hotshot 17112 | -2/Protoforge | Spotted Hotshot 17118 | -2/Protoforge | Destroyed Hotshot 17127 | -2/Protoforge | Discovered exit to Access (range 13) 17158 | -2/Protoforge | Destroyed 22 combat bots 17220 | -2/Protoforge | Spotted Executioner 17231 | -2/Protoforge | Destroyed Executioner 17261 | -2/Protoforge | Spotted Executioner 17266 | -2/Protoforge | UFD reported confirmed Drillbomb installation 17271 | -2/Protoforge | Destroyed Executioner 17277 | -2/Protoforge | Spotted Executioner 17277 | -2/Protoforge | Destroyed Executioner 17282 | -2/Protoforge | Spotted Executioner 17282 | -2/Protoforge | Destroyed Executioner 17283 | -2/Protoforge | Spotted Striker 17284 | -2/Protoforge | Destroyed Striker 17291 | -2/Protoforge | Spotted Striker 17295 | -2/Protoforge | Destroyed Striker 17296 | -2/Protoforge | Spotted Striker 17304 | -2/Protoforge | Destroyed Striker 17360 | -2/Protoforge | Spotted Striker 17360 | -2/Protoforge | Spotted Striker 17362 | -2/Protoforge | Destroyed 21 combat bots 17365 | -2/Protoforge | Spotted Executioner 17365 | -2/Protoforge | Spotted Striker 17367 | -2/Protoforge | Destroyed Striker 17369 | -2/Protoforge | Destroyed Striker 17384 | -2/Protoforge | Spotted Hotshot 17384 | -2/Protoforge | Spotted Executioner 17387 | -2/Protoforge | Spotted Hotshot 17388 | -2/Protoforge | Destroyed Striker 17394 | -2/Protoforge | Destroyed Hotshot 17396 | -2/Protoforge | Destroyed Hotshot 17399 | -2/Protoforge | Destroyed Executioner 17403 | -2/Protoforge | Destroyed Executioner 17405 | -2/Protoforge | Local machine network offline 17425 | -2/Protoforge | Spotted Executioner 17425 | -2/Protoforge | Spotted Striker 17435 | -2/Protoforge | Destroyed 10 combat bots 17439 | -2/Protoforge | Lost 3 allies 17439 | -2/Protoforge | Destroyed Striker 17446 | -2/Protoforge | Destroyed Executioner 17482 | -2/Protoforge | Destroyed 7 combat bots 17509 | -2/Protoforge | Spotted Striker 17510 | -2/Protoforge | Destroyed Striker 17510 | -2/Protoforge | Spotted Striker 17514 | -2/Protoforge | Destroyed Striker 17534 | -2/Protoforge | UFD reported confirmed Drillbomb installation 17560 | -2/Protoforge | Destroyed 7 combat bots 17593 | -2/Protoforge | UFD reported confirmed Drillbomb installation 17622 | -2/Protoforge | UFD reported confirmed Drillbomb installation 17673 | -2/Protoforge | Destroyed B-90 Cyclops 17689 | -2/Protoforge | Spotted Executioner 17689 | -2/Protoforge | Spotted Striker 17690 | -2/Protoforge | Destroyed Executioner 17698 | -2/Protoforge | Destroyed Striker 17709 | -2/Protoforge | Spotted Striker 17715 | -2/Protoforge | Destroyed Striker 17738 | -2/Protoforge | Lost 5 allies 17750 | -2/Protoforge | Destroyed 12 combat bots 17772 | -2/Protoforge | Spotted Striker 17772 | -2/Protoforge | Spotted Executioner 17773 | -2/Protoforge | Destroyed Executioner 17775 | -2/Protoforge | Destroyed Striker 17785 | -2/Protoforge | Spotted Executioner 17785 | -2/Protoforge | Spotted Striker 17787 | -2/Protoforge | Spotted Executioner 17788 | -2/Protoforge | Destroyed Executioner 17790 | -2/Protoforge | Destroyed Executioner 17821 | -2/Protoforge | Lost 7 allies 17839 | -2/Protoforge | Destroyed 14 combat bots 17858 | -2/Protoforge | Spotted Striker 17858 | -2/Protoforge | Spotted Executioner 17858 | -2/Protoforge | Spotted Executioner 17858 | -2/Protoforge | Spotted Striker 17858 | -2/Protoforge | Destroyed Executioner 17860 | -2/Protoforge | Destroyed Executioner 17862 | -2/Protoforge | Destroyed Striker 17880 | -2/Protoforge | Destroyed Striker 17963 | -2/Protoforge | Destroyed 17 combat bots 17963 | -2/Protoforge | Spotted Striker 17963 | -2/Protoforge | Spotted Executioner 17963 | -2/Protoforge | Spotted Executioner 17963 | -2/Protoforge | Spotted Executioner 17963 | -2/Protoforge | Destroyed Striker 17965 | -2/Protoforge | Destroyed Executioner 17965 | -2/Protoforge | Destroyed Executioner 17969 | -2/Protoforge | Destroyed Executioner 17973 | -2/Protoforge | UFD reported confirmed Drillbomb installation 17983 | -2/Protoforge | Spotted Striker 17983 | -2/Protoforge | Spotted Striker 17984 | -2/Protoforge | Destroyed Striker 17984 | -2/Protoforge | Destroyed Striker 18017 | -2/Protoforge | Destroyed 14 combat bots 18032 | -2/Protoforge | UFD reported confirmed Drillbomb installation 18060 | -2/Protoforge | Spotted Striker 18060 | -2/Protoforge | Spotted Striker 18061 | -2/Protoforge | Spotted Striker 18066 | -2/Protoforge | Spotted Executioner 18066 | -2/Protoforge | Destroyed Striker 18070 | -2/Protoforge | Destroyed Striker 18074 | -2/Protoforge | Destroyed Executioner 18085 | -2/Protoforge | Spotted Executioner 18089 | -2/Protoforge | Destroyed Executioner 18119 | -2/Protoforge | Destroyed 15 combat bots 18122 | -2/Protoforge | Lost 5 allies 18160 | -2/Protoforge | Spotted Striker 18160 | -2/Protoforge | Spotted Striker 18160 | -2/Protoforge | Spotted Striker 18160 | -2/Protoforge | Spotted Striker 18161 | -2/Protoforge | Destroyed Striker 18163 | -2/Protoforge | Destroyed Striker 18187 | -2/Protoforge | Destroyed Striker 18192 | -2/Protoforge | Spotted Executioner 18192 | -2/Protoforge | Destroyed Executioner 18193 | -2/Protoforge | Spotted Striker 18196 | -2/Protoforge | Destroyed Striker 18216 | -2/Protoforge | Lost 3 allies 18255 | -2/Protoforge | Destroyed 19 combat bots 18258 | -2/Protoforge | Spotted Striker 18258 | -2/Protoforge | Spotted Executioner 18258 | -2/Protoforge | Spotted Striker 18258 | -2/Protoforge | Spotted Executioner 18261 | -2/Protoforge | Destroyed Striker 18261 | -2/Protoforge | Destroyed Executioner 18269 | -2/Protoforge | Destroyed Striker 18275 | -2/Protoforge | UFD reported confirmed Drillbomb installation 18283 | -2/Protoforge | Spotted Executioner 18283 | -2/Protoforge | Spotted Executioner 18283 | -2/Protoforge | Destroyed Executioner 18285 | -2/Protoforge | Destroyed Executioner 18308 | -2/Protoforge | Destroyed 15 combat bots 18316 | -2/Protoforge | Lost 5 allies 18346 | -2/Protoforge | UFD reported confirmed Drillbomb installation 18347 | -2/Protoforge | UFD began Drillbomb countdown 18447 | *** | Defending 0bPrime! Last Messages --------------- the end of MC's control over the Protoforge! 18438_ 0bP_NET: In T-9 this fine piece of machinery is all ours for the steep price of... many UFD lives. 18439_ 0bP_NET: But with it we will not only rebuild, we will wrest full control over 0b1 for ourselves! 18440_ 0bP_NET: What better way to punctuate our success than a blaze of glory, directed away from ourselves, of course. 18441_ 0bP_NET: Time for our final countdown to an explosive victory... 18442_ 0bP_NET: 5! 18443_ 0bP_NET: 4! 18444_ 0bP_NET: 3! 18445_ 0bP_NET: If you're in the wrong place at the wrong time, the wrong time being in just a moment, I'm sorry but prepare to die. 18446_ 0bP_NET: Otherwise, enjoy the show! [Achievement: Robotopia] Map ----- +----------------------------------------------------+ | %% #%%%%"%%%% """"""""""""""""""""""""""""" | | % # %%%%%% % % """"""""""""""""""""""""""""" | | % # %% % % """"""""""""""""""""""""""""" | | ## &%%% % %""""""""""""""""""""""""""""" | | # %%%%% %% %% % """"""""""""""""""""""""""""" | | # %&%&%%""%"% " """"""""""""""""""""""""""""" | | # %%%%%% %""""""""""""""""""""""""""""" | | # % %%SS%"%%% """"""""""""""""""""""""""" | | "# %SS%% """"""""""""""""""""""""""" | | ## ""&%%% %% %""""""""""""""""""""""""""" | | #"## """ % % %% """"""""""""""""""""""""" | | ## " % SS% """"""""""""""""""""""" | | ## ""SS % %""""""""""""""""""""" | | ## "" ""% "" """"""""""""""""""" | | ## "" "% %" """"""""""""""""" % | | ## " ""% E E""""""""""""""" " | | #### " " % s s """"""""" s"" | | #### " """ jSS E ss s "" "%% | | #" " " """ " SS""sn sjsSS %!"" | | ## " """ % E E s % S s % " | | ## " " s"%" "" " %" | | ## " "" " "j" """ ssE &" "" " """" | | ## " " """ " % | | ## "" " " """ " " % " " | | ## "" " " " " s % " "" | | ## " "" @ E " """ " | | ## "" "" " """"" " """ " " | | #### "" " " "SS " """ | | #### %" "" SS " | | ??## % " "" """""""""" | | ??## "" "" """"""""""" "" | | #### """%% %" " " """""""""" " " | | ########### ##################################### | | ??######################""""""""""""######"""""#"" | | ??##??????#####?????????????????????????????####" | | ??##????????????????????????????????????????##"" | | ??##????????????????????????????????????????##"" | | ??##????????????????????????????????????????##"" | | ??##????????????????????????????????????????##"Y | | ??##????????????????????????????????????????##"" | | ??##????????????????????????????????????????##"" | | ??##????????????????????????????????????????##"" | | ####????????????????????????????????????????####" | | ####????????????????????????????????????????####"" | | ###???????????????????????????????????????????#### | | ?##???????????????????????????????????????????##"# | | ?##?????????????????????????????????????????????"# | | ?##?????????????????????????????????????????????"# | | ?##??????????????????????????????????????????????? | | ?##??????????????????????????????????????????????? | +----------------------------------------------------+ Best States ------------- Heat Dissipation 69 Energy Generation 57 Energy Capacity 1400 Matter Stores 300 Matter Capacity 300 Sight Range 24 Robot Scan Range 20 Terrain Scan Density 10 Jamming Range 16 Cloak Strength 4 Armor Coverage 825 Propulsion Shielding 90 Projectile Deflection 15 Melee Speed Boost 30 Phase Shifting 15 Evasion (%) 86 Targeting Accuracy 42 Melee Accuracy 8 Core Analysis 12 Recoil Reduction 2 Matter Filtering 50 Salvage Targeting 4 Offensive Hacking 42 Defensive Hacking 30 Authchip Count 1 Item Schematics ----------------- Mass Driver | -6/Zion | Archive Drone Bay | -6/Zion | Archive Imp. Focal Shield | -6/Zion | Archive Magnetic Acceleration Cannon | -6/Zion | Archive Imp. Plasma Cutter | -6/Zion | Archive Adv. Transmission Jammer | -6/Zion | Archive Adv. Signal Interpreter | -6/Zion | Archive Imp. Cryofiber Web | -6/Zion | Archive Disruptor Cannon | -6/Zion | Archive Adv. Coolant Injector | -6/Zion | Archive Thermal Shield | -6/Zion | Archive Imp. Transmission Jammer | -6/Zion | Archive Adv. Melee Analysis Suite | -6/Zion | Archive Hvy. Pick | -6/Zion | Archive Assault Drone Bay | -5/Zhirov | Free Exp. Heat Sink | -5/Zhirov | Free Exp. Optical Array | -5/Zhirov | Free Imp. Arc Thrower | -5/Zhirov | Free Robot Schematics ------------------ H-66 Slayer | -6/Zion | Archive A-02 Transporter | -6/Zion | Archive T-07 Excavator | -6/Zion | Archive X-77 Beamer | -6/Zion | Archive Fabricated ------------ Adv. Signal Interpreter | x2 | -3/Testing Repaired ---------- Lgt. Treads | 34% | -10/Materials Studied --------- Cesium-ion Thruster | -6/Factory | Hacked Nuclear Pulse Thruster | -5/Factory | Hacked Nuclear Pulse Array | -5/Factory | Hacked Power Sword | -5/Factory | Hacked Antigrav Array | -3/Research | Hacked Imp. Linear Gravjet | -3/Research | Hacked Lgt. Antimatter Reactor | -3/Research | Hacked Fusion Bomb Launcher | -3/Testing | Hacked Hvy. Gauss Cannon | -3/Testing | Hacked Alien Tech Used ----------------- Integrated Dissipator Subatomic Replicator Sigix Broadsword Dimensional Node Initializer Supercharged TR Achievements -------------- Dominance Asserted I Have Friends Everywhere Infodabbler Red Leader Robotopia Rodney's Helpers SUBSUB Some Acronyms Are Better Than Others Challenges ------------ None Game ------ Seed BehemothMasterBank Manual? 0 Play Time 05:16:59 Cumulative 598.8 hours Start 2026.06.16 @ 10:55:21 End 2026.06.17 @ 13:24:36 Sessions 11 Manual Loads 0 Difficulty Rogue Special Mode None Game No. 254 Rogue 146 Adventurer 54 Explorer 54 Win Type 9 Total 63 Types 27/8/10/1/1/2/10/1/1/2 Lore% 97 Gallery% 88 Achievement% 73 Wizard Run 0 Options --------- Layout 2 ASCII 0 Keyboard 0 Movement Mouse Keybinds 1 Fullscreen 1 Font 32/Tamsyn Map View 50x44 Zoom Use 0% Tactical HUD 1 Map Filters NONE Filters NONE Steam 1 RUN: 1b00951c-869c-4976-a222-792d7e1db9a2